{"text_format":"1","workbook":"xlsx","n_sheets":27,"sheets":["modListProv","mod_01","Инструкция","Лог обновления","Титульный","Отпуск ЭЭ сет организациями","Комментарии","Проверка","Statistic","TEHSHEET","et_union","AllSheetsInThisWorkbook","mod_11","modComm","modButton","modInstruction","modHTTP","REESTR_ORG","REESTR_MO","modfrmRegion","modfrmReestr","modfrmCheckUpdates","modReestr","modUpdTemplMain","modDoubleClick","modHyperlink","modfrmDateChoose"],"not_rendered":{"charts":0,"images":18,"macros":1,"external_links":0,"defined_names":64,"comments":0,"pivot_tables":0},"unopened":[],"bounds":{"document_bytes":16777216,"sheet_cells":100000,"rows_first":2000,"rows_last":500,"rows_between":2000,"halvings":0,"cell_chars":16384,"cell_head_chars":4096},"cells_cut":0,"cells_raw":0,"read":"whole","date_system":"1900"}

{"sheet":"modListProv","index":0,"n_rows":0,"n_cols":0,"rows_kept":0,"cut":false,"hidden":true,"merged":[]}

{"sheet":"mod_01","index":1,"n_rows":0,"n_cols":0,"rows_kept":0,"cut":false,"hidden":true,"merged":[]}

{"sheet":"Инструкция","index":2,"n_rows":148,"n_cols":27,"rows_kept":148,"cut":false,"hidden":false,"merged":[[100,4,100,23],[105,4,105,23],[74,4,74,23],[89,4,89,23],[90,4,90,23],[77,4,77,23],[102,4,102,23],[101,4,101,23],[99,4,99,23],[93,4,93,23],[94,4,94,23],[96,4,96,23],[103,4,103,23],[109,4,109,23],[108,4,108,23],[104,4,104,23],[59,10,59,23],[81,4,81,23],[82,4,82,23],[72,4,72,23],[75,4,75,23],[76,4,76,23],[107,4,107,23],[79,4,79,23],[80,4,80,23],[95,4,95,23],[97,4,97,23],[98,4,98,23],[83,4,83,23],[58,4,58,9],[58,10,58,23],[59,4,59,9],[91,4,91,23],[92,4,92,23],[71,4,71,23],[87,4,87,23],[88,4,88,23],[86,4,86,23],[78,4,78,23],[73,4,73,23],[84,4,84,23],[1,1,1,6],[2,1,2,2],[4,1,4,24],[6,4,18,23],[45,4,56,23],[20,5,20,12],[20,15,20,23],[21,5,21,12],[21,15,21,23],[34,4,38,23],[39,4,39,23],[147,5,147,23],[114,4,114,23],[115,4,115,23],[126,4,126,6],[119,4,119,23],[145,5,145,18],[118,4,118,23],[127,4,127,9],[127,10,127,23],[143,4,143,23],[116,4,116,23],[129,4,129,23],[130,4,130,9],[130,10,130,23],[131,4,131,9],[131,10,131,23],[133,4,133,9],[134,4,134,9],[133,10,133,23],[134,10,134,23],[106,4,106,23],[112,4,112,23],[113,4,113,23],[117,4,117,23],[110,4,110,23],[111,4,111,23],[123,4,123,23],[120,4,120,23],[121,4,121,23],[122,4,122,23],[128,4,128,9],[128,10,128,23]]}
[null,null,null,null,null,null,null,null,null,null,null,null,null,null,null,null,null,null,null,null,null,null,null,null,null,null," (требуется обновление)"]
[null,{"$f":"\"Код отчёта: \" & GetCode()","v":"Код отчёта: 46EP.ST"}]
[null,{"$f":"\"Версия \" & Getversion()","v":"Версия 2.3"}]
[]
[null,"Сведения об отпуске (передаче) электроэнергии распределительными сетевыми организациями отдельным категориям потребителей\nПриказ Росстата: Об утверждении формы  от  03.07.2013 № 257"]
[]
[null,null,null,null,"• На рабочем месте должен быть установлен MS Office 2003 SP3, 2007 SP3, 2010, 2013 с полной версией MS Excel\n\n• Макросы во время работы должны быть включены (!)\n\n• Для корректной работы отчёта требуется выбрать низкий уровень безопасности\n(В меню MS Excel 2003: Сервис | Макрос | Безопасность | выбрать пункт «Низкая безопасность» | OK)\n(В меню MS Excel 2007/2010/2013: Параметры Excel | Центр управления безопасностью | Параметры центра управления безопасностью | Параметры макросов | Включить все макросы | ОК)\n\n• Если Вы работаете в табличном процессоре MS Excel 2007 и выше, то можете использовать для работы формат XLSB (Двоичная книга Excel). При работе в формате XLSB заметно быстрее происходит сохранение файла, а также уменьшается размер по сравнению с форматами XLS и XLSM\n\n• Не рекомендуется снимать защиту с листов и каким-либо образом модифицировать защищаемые формулы и расчётные поля, в противном случае, отчёт будет отклонён системой\n\n• При сохранении не следует выбирать формат XLSX (Книга Excel), так как в указанном формате макросы, необходимые для работы отчёта, безвозвратно удаляются"]
[]
[]
[]
[]
[]
[]
[]
[]
[]
[]
[]
[]
[]
[null,null,null,null,"A"," - предназначенные для заполнения",null,null,null,null,null,null,null,null,"A"," - обязательные для заполнения поля"]
[null,null,null,null,"A"," - с формулами и константами",null,null,null,null,null,null,null,null,"A"," - незаполняемые поля"]
[]
[]
[]
[]
[]
[]
[]
[]
[]
[]
[]
[]
[null,null,null,null,"Если в предложенном Вам списке необходимая организация, МР/МО отсутствуют, обновите реестры с помощью кнопок\n\nВ результате синхронизации с базой данных список организаций (МР/МО) будет заменён актуальным (механизм синхронизации требует подключения к сети Интернет и основан на использовании протокола HTTPS (TCP порт 443))\n\nЕсли после обновления Вам не удалось найти необходимую организацию в списке, обратитесь к ответственному за поддержание реестра Вашего региона. Информация о региональных органах регулирования доступна по ссылке:"]
[]
[]
[]
[]
[null,null,null,null,"Информация о региональных органах регулирования"]
[]
[]
[]
[]
[]
[null,null,null,null,"• При сохранении шаблона осуществляется проверка корректности данных, в том числе на наличие значений в ячейках, обязательных для заполнения\n\n• Если какая-то ячейка не удовлетворяет условию проверки, на лист «Проверка» добавляется гиперссылка на данную ячейку и указывается причина ошибки\n\n• В колонке «Статус» для каждого сообщения возможны 2 значения: ошибка и предупреждение\n\n• При наличии сообщений со статусом «Ошибка» шаблон будет отклонён системой и не будет загружен в хранилище данных, сообщения со статусом «Предупреждение» носят информационный характер, и такой шаблон будет принят системой"]
[]
[]
[]
[]
[]
[]
[]
[]
[]
[]
[]
[]
[null,null,null,null,"Консультации:",null,null,null,null,null,"Обратиться за помощью"]
[null,null,null,null,"Дистрибутивы:",null,null,null,null,null,"Перейти"]
[]
[]
[]
[]
[]
[]
[]
[]
[]
[null,null,null,null,"Указания по заполнению формы федерального статистического наблюдения"]
[]
[null,null,null,null,"1. По форме № 46-ЭЭ (передача) отчитываются юридические лица - сетевые организации, осуществляющие оказание услуг по передаче и распределению электрической энергии (мощности); ОАО «Федеральная сетевая компания ЕЭС России»."]
[null,null,null,null,"Сетевые организации, осуществляющие оказание услуг по передаче электрической энергии (мощности), - это коммерческие организации, оказывающие независимо от организационно-правовой формы субъектам оптового рынка электроэнергии (мощности) услуги по передаче электроэнергии (мощности) по магистральным линиям электропередачи.*"]
[null,null,null,null,"Распределение электрической энергии (мощности) - это оказание коммерческими организациями независимо от организационно-правовой формы субъектам оптового и розничных рынков услуг по поставке электрической энергии (мощности) потребителям по электрическим сетям (Раздел I «Основных направлений реформирования электроэнергетики Российской Федерации», одобренных постановлением Правительства Российской Федерации от 11.07.2001 № 526)."]
[null,null,null,null,"2. Юридическое лицо заполняет настоящую форму и предоставляет ее в Федеральную службу по тарифам в установленной форме"]
[null,null,null,null,"(в электронном виде через ЕИАС ФСТ России)."]
[null,null,null,null,"При наличии у юридического лица обособленных подразделений - настоящая форма заполняется как по каждому обособленному подразделению, так и по юридическому лицу без этих обособленных подразделений."]
[null,null,null,null,"Руководитель юридического лица назначает должностных лиц, уполномоченных предоставлять статистическую информацию от имени юридического лица."]
[null,null,null,null,"В адресной части указывается полное наименование отчитывающейся организации в соответствии с учредительными документами, зарегистрированными в установленном порядке, а затем в скобках - краткое наименование. На бланке формы, содержащей сведения по обособленному подразделению юридического лица, указывается наименование обособленного подразделения и юридического лица, к которому оно относится."]
[null,null,null,null,"По строке «Почтовый адрес» указывается наименование субъекта Российской Федерации, юридический адрес с почтовым индексом; если фактический адрес не совпадает с юридическим, то указывается также фактический почтовый адрес. Для обособленных подразделений, не имеющих юридического адреса, указывается почтовый адрес с почтовым индексом."]
[null,null,null,null,"Юридическое лицо проставляет в кодовой части формы в обязательном порядке в графе 2 код Общероссийского классификатора предприятий и организаций (ОКПО), в графе 5 код объекта отчета – субъекта (района) муниципального образования по Общероссийскому классификатору территориальных муниципальных образований (ОКТМО) на основании Уведомления о присвоении кодов, направляемого (выдаваемого) организациям территориальными органами Росстата."]
[null,null,null,null,"Кроме того, в свободных графах кодовой части формы проставляются:"]
[null,null,null,null,"в графе 3 - ИНН (идентификационный номер налогоплательщика);"]
[null,null,null,null,"в графе 4 - код причины постановки на учет (КПП)."]
[null,null,null,null,"Юридическое лицо, зарегистрированное на территории одного субъекта Российской Федерации и ведущее деятельность, связанную с оказанием услуг по передаче электрической энергии, на территории нескольких субъектов Российской Федерации, предоставляет форму по каждой территории, указывая в графе 6 адресной части код территории по ОКАТО."]
[]
[null,null,null,null,"По территориально-обособленным подразделениям юридического лица указывается идентификационный номер, который устанавливается территориальным органом Росстата по месту расположения территориально-обособленного подразделения."]
[null,null,null,null,"Отрицательные значения вводятся в случае перерасчета предыдущих периодов по регулируемым тарифам"]
[null,null,null,null,"3. При заполнении отчетных форм принимается:"]
[null,null,null,null,"ВН - напряжение в сети 110 кВ и выше;"]
[null,null,null,null,"СН1 - напряжение в сети 35 кВ и выше;"]
[null,null,null,null,"СН2 - напряжение в сети 10-6 кВ и выше;"]
[null,null,null,null,"НН - напряжение в сети 0,4 кВ и выше."]
[null,null,null,null,"Отнесение потребителей по уровням напряжения производится на основании договоров на оказание услуг по передаче электроэнергии с учетом особенностей отнесения потребителей к соответствующему уровню напряжения, принятых в соответствии с действующим законодательством. Определение отпуска (передачи) электроэнергии по группам потребителей не производится."]
[null,null,null,null,"4. В графе 1 содержатся наименования показателей, значения которых необходимо указать в таблице. Все значения показателей дифференцированы по уровням напряжения:"]
[null,null,null,null,"графа 4 - ВН"]
[null,null,null,null,"графа 5 - СН1"]
[null,null,null,null,"графа 6- СН2"]
[null,null,null,null,"графа 7 - НН"]
[null,null,null,null,"5. В графе 3 «Всего» приводится сумма граф 4, 5, 6 и 7."]
[null,null,null,null,"6. В строке 10 отражается общий объем электроэнергии, поступившей от других организаций в сеть отчитывающейся организации."]
[null,null,null,null,"7. В строке 20 отражается объем электроэнергии, поступившей из сетей ФСК."]
[null,null,null,null,"8. В строке 30 отражается объем электроэнергии, поступившей от генерирующих компаний и блок-станций."]
[null,null,null,null,"9. В строке 40 отражается объем электроэнергии, поступившей от смежных сетевых организаций."]
[null,null,null,null,"10. В строке 50 отражается общий объем электроэнергии, поступившей из других уровней напряжения."]
[null,null,null,null,"11. Строки 60 - 90 заполняются по уровням напряжения ВН, СН1, СН2, НН, отражают объемы электрической энергии, переданные в сеть по каждому из уровней напряжения для дальнейшей передачи по сетям."]
[null,null,null,null,"12. В строке 100 отражается общий объем электроэнергии, отпущенной из сети отчитывающейся организации."]
[null,null,null,null,"13. В строке 110 отражается объем электроэнергии, отпущенной конечным потребителям (кроме совмещающих с передачей)."]
[null,null,null,null,"14. В строке 120 отражается объем электроэнергии, отпущенной населению и приравненным к нему группам."]
[null,null,null,null,"15. В строке 130 отражается объем электроэнергии, отпущенной в другие сети."]
[null,null,null,null,"16. В строке 140 отражается объем электроэнергии, отпущенной поставщикам."]
[null,null,null,null,"17. В строке 150 отражается общий объем электроэнергии, отпущенной в сети других уровней напряжения."]
[null,null,null,null,"18. В строке 160 отражается объем электроэнергии, отпущенной на хозяйственные нужды сети."]
[null,null,null,null,"19. В строке 170 отражается объем электроэнергии, сгенерированной на собственных установках организации."]
[null,null,null,null,"20. В строке 180 отражается объем электроэнергии, относимой на собственное потребление."]
[null,null,null,null,"21. В строке 190 отражается общий объем потерь электроэнергии."]
[null,null,null,null,"22. В строке 200 отражается объем электроэнергии, относимой (израсходованной) на собственное потребление."]
[null,null,null,null,"23. В строке 210 отражается разность между общим объемом электроэнергии, поступившей из сетей других организаций и сгенерированной на установках организации, и объемом электроэнергии, переданной в сети других организаций и отпущенной на собственное потребление. Строка 210 = сумма строк (10 + 50 + 170) – сумма строк (100 + 150 + 160 + 180 + 190)."]
[null,null,null,null,"24. Строки 300 - 490 заполняются аналогично строкам 10 – 200, строка 500 = сумма строк (300 + 340 + 460) – сумма строк (390 +440 + 450 + 470 + 480)."]
[null,null,null,null,"25. В строке 600 приводятся сведения о сумме всей заявленной потребителями мощности."]
[null,null,null,null,"26. В строке 610 приводятся сведения о величине максимальной мощности принадлежащих на праве собственности или ином законном основании энергопринимающих устройств."]
[null,null,null,null,"27. В строке 620 приводятся сведения о величине резервируемой максимальной мощности, определяемой в соответствии с актом Правительства Российской Федерации, устанавливающим особенности определения стоимости услуг по передаче электрической энергии с учетом оплаты резервируемой максимальной мощности."]
[null,null,null,null,"28. В строке 700 – 790 отражается объем потребляемой электрической энергии (мощности) потребителями, заключившими или в интересах которых ГП, ЭСО, ЭСК заключили договор на оказание услуг по передаче электрической энергии (мощности), в соответствии с выбранным тарифом."]
[null,null,null,null,"29. В строке 800 - 920 указывается фактическая стоимость услуг по передаче, определенная исходя из фактических объемов отпуска электрической энергии (мощности) и установленных тарифов на услуги по передаче электрической энергии (мощности) с учетом НДС, если организация является плательщиком НДС."]
[]
[null,null,null,null,"* Данное понятие применяется только для целей заполнения данной формы"]
[]
[null,null,null,null,"Отчётные формы:",null,null,null,null,null,"Перейти к разделу"]
[]
[null,null,null,null,"Контакты специалистов ЦА ФАС России:"]
[null,null,null,null,"ФИО:",null,null,null,null,null,"Максим Николаевич Пальянов"]
[null,null,null,null,"E-mail:",null,null,null,null,null,"palyanovmn@fas.gov.ru"]
[]
[null,null,null,null,"ФИО:",null,null,null,null,null,"Игорь Владиславович Бедрин"]
[null,null,null,null,"E-mail:",null,null,null,null,null,"bedrin@fas.gov.ru"]
[]
[]
[]
[]
[]
[]
[]
[]
[null,null,null,null,"При наличии подключения к Интернет, можно автоматически проверять наличие доступных обновлений. Выберите способ оповещения о наличии обновлений для отчёта:"]
[]
[null,null,null,null,null,"проверять доступные обновления (рекомендуется)",null,null,null,null,null,null,null,null,null,null,null,null,null,null,null,null,null,null,null,null,"y"]
[]
[null,null,null,null,null,"никогда не проверять наличие обновлений (не рекомендуется)"]

{"sheet":"Лог обновления","index":3,"n_rows":60,"n_cols":4,"rows_kept":60,"cut":false,"hidden":true,"merged":[]}
[]
["3/17/2012  12:12:41 AM","Дата/Время","Сообщение","Статус"]
[null,"2017-02-13T14:25:43","Проверка доступных обновлений...","Информация"]
[null,"2017-02-13T14:25:45","Проверка доступных обновлений...","Информация"]
[null,"2017-02-13T14:25:46","Нет доступных обновлений для отчёта с кодом 46EP.ST!","Информация"]
[null,"2017-02-13T14:26:19","Проверка доступных обновлений...","Информация"]
[null,"2017-02-13T14:26:22","Нет доступных обновлений для отчёта с кодом 46EP.ST!","Информация"]
[null,"2017-02-13T14:27:52","Проверка доступных обновлений...","Информация"]
[null,"2017-02-13T14:27:56","Нет доступных обновлений для отчёта с кодом 46EP.ST!","Информация"]
[null,"2017-02-13T14:59:06","Проверка доступных обновлений...","Информация"]
[null,"2017-02-13T14:59:08","Нет доступных обновлений для отчёта с кодом 46EP.ST!","Информация"]
[null,"2017-02-13T16:23:33","Проверка доступных обновлений...","Информация"]
[null,"2017-03-13T16:20:17","Проверка доступных обновлений...","Информация"]
[null,"2017-03-13T16:20:19","Нет доступных обновлений для отчёта с кодом 46EP.ST!","Информация"]
[null,"2017-04-11T18:20:25","Проверка доступных обновлений...","Информация"]
[null,"2017-05-15T08:28:54","Проверка доступных обновлений...","Информация"]
[null,"2017-06-07T11:04:37","Проверка доступных обновлений...","Информация"]
[null,"2017-07-12T11:04:36","Проверка доступных обновлений...","Информация"]
[null,"2017-07-12T11:04:38","Нет доступных обновлений для отчёта с кодом 46EP.ST!","Информация"]
[null,"2017-08-10T16:11:10","Проверка доступных обновлений...","Информация"]
[null,"2017-08-10T16:11:12","Нет доступных обновлений для отчёта с кодом 46EP.ST!","Информация"]
[null,"2017-08-10T16:12:30","Проверка доступных обновлений...","Информация"]
[null,"2017-08-10T16:12:32","Нет доступных обновлений для отчёта с кодом 46EP.ST!","Информация"]
[null,"2017-09-18T13:31:57","Проверка доступных обновлений...","Информация"]
[null,"2017-09-19T15:04:06","Проверка доступных обновлений...","Информация"]
[null,"2017-09-19T15:04:08","Нет доступных обновлений для отчёта с кодом 46EP.ST!","Информация"]
[null,"2017-09-19T15:06:19","Проверка доступных обновлений...","Информация"]
[null,"2017-09-19T15:06:21","Нет доступных обновлений для отчёта с кодом 46EP.ST!","Информация"]
[null,"2017-10-13T12:01:36","Проверка доступных обновлений...","Информация"]
[null,"2017-11-14T12:25:57","Проверка доступных обновлений...","Информация"]
[null,"2017-12-13T11:56:08","Проверка доступных обновлений...","Информация"]
[null,"2018-01-16T12:55:31","Проверка доступных обновлений...","Информация"]
[null,"2018-01-17T15:41:53","Проверка доступных обновлений...","Информация"]
[null,"2018-01-17T15:42:11","Проверка доступных обновлений...","Информация"]
[null,"2018-01-17T15:42:12","Доступно обновление до версии 2.3","Информация"]
[null,"2018-01-17T15:42:12","Описание изменений: Версия 2.2\n- скорректированы параметры проверки перед сохранением\nВерсия 2.3\n- скорректированы контакты ответственных","Информация"]
[null,"2018-01-17T15:42:12","Размер файла обновления: 368128 байт","Информация"]
[null,"2018-01-17T15:42:26","Подготовка к обновлению...","Информация"]
[null,"2018-01-17T15:43:42","Сохранение файла резервной копии: C:\\Documents and Settings\\Kononov\\Рабочий стол\\46EP декабрь 2017.BKP..xlsm","Информация"]
[null,"2018-01-17T15:43:42","Резервная копия создана: C:\\Documents and Settings\\Kononov\\Рабочий стол\\46EP декабрь 2017.BKP..xlsm","Информация"]
[null,"2018-01-17T15:43:42","Создание книги для установки обновлений...","Информация"]
[null,"2018-01-17T15:46:50",null,"Ошибка"]
[null,"2018-01-17T15:47:09","Проверка доступных обновлений...","Информация"]
[null,"2018-01-17T15:47:09","Доступно обновление до версии 2.3","Информация"]
[null,"2018-01-17T15:47:09","Описание изменений: Версия 2.2\n- скорректированы параметры проверки перед сохранением\nВерсия 2.3\n- скорректированы контакты ответственных","Информация"]
[null,"2018-01-17T15:47:10","Размер файла обновления: 368128 байт","Информация"]
[null,"2018-01-17T15:47:14","Подготовка к обновлению...","Информация"]
[null,"2018-01-17T15:47:22","Сохранение файла резервной копии: C:\\Documents and Settings\\Kononov\\Рабочий стол\\46EP декабрь 2017.BKP..BKP..xlsm","Информация"]
[null,"2018-01-17T15:47:22","Резервная копия создана: C:\\Documents and Settings\\Kononov\\Рабочий стол\\46EP декабрь 2017.BKP..BKP..xlsm","Информация"]
[null,"2018-01-17T15:47:22","Создание книги для установки обновлений...","Информация"]
[null,"2018-01-17T15:47:25","Файл обновления загружен: C:\\Documents and Settings\\Kononov\\Рабочий стол\\UPDATE.46EP.ST.TO.2.3.24.xls","Информация"]
[null,"2018-01-17T15:47:28","Обновление завершилось удачно! Шаблон 46EP.ST(v2.1) декабрь 2017 Кононову.xlsm сохранен под именем '46EP.ST(v2.3) декабрь 2017 Кононову.xlsm'","Информация"]
[null,"2018-01-17T15:49:13","Проверка доступных обновлений...","Информация"]
[null,"2018-01-17T15:49:14","Проверка доступных обновлений...","Информация"]
[null,"2018-01-17T15:49:14","Нет доступных обновлений для отчёта с кодом 46EP.ST!","Информация"]
[null,"2018-01-17T15:49:17","Нет доступных обновлений для отчёта с кодом 46EP.ST!","Информация"]
[null,"2018-01-25T10:36:27","Проверка доступных обновлений...","Информация"]
[null,"2018-02-12T09:49:53","Проверка доступных обновлений...","Информация"]
[null,"2018-02-13T08:40:03","Проверка доступных обновлений...","Информация"]
[null,"2018-03-13T10:35:54","Проверка доступных обновлений...","Информация"]

{"sheet":"Титульный","index":4,"n_rows":53,"n_cols":7,"rows_kept":53,"cut":false,"hidden":false,"merged":[[7,4,7,6]]}
[]
[]
[]
[]
[]
[]
[null,null,null,null,null,null,{"$f":"version","v":"Версия 2.3"}]
[null,null,null,null,"Сведения об отпуске (передаче) электроэнергии распределительными сетевыми организациями отдельным категориям потребителей"]
[]
[]
[null,null,null,null,null,"Субъект РФ","Магаданская область"]
[null,null,null,null,null,null,"Отчетный период"]
[null,null,null,null,null,"Год",2018]
[null,null,null,null,null,"Месяц","февраль"]
[null,null,null,null,null,"Срок предоставления отчета истек","Нет"]
[null,null,null,null,null,"Ссылка на обосновывающие материалы"]
[]
[null,null,null,null,null,"Наименование организации","АО \"Магаданэлектросеть\""]
[null,null,null,null,null,"ИНН","4909044901"]
[null,null,null,null,null,"КПП","490901001"]
[null,null,null,null,null,"Вид деятельности","Сетевая компания"]
[]
[null,null,null,null,null,"Муниципальный район","Город Магадан"]
[]
[null,null,null,null,null,"Муниципальное образование","Город Магадан"]
[]
[null,null,null,null,null,"ОКТМО","44701000"]
[]
[null,null,null,null,null,null,"Адрес организации"]
[null,null,null,null,null,"Юридический адрес:","г. Магадан, ул. Пролетарская, 98"]
[null,null,null,null,null,"Почтовый адрес:","г. Магадан, ул. Пролетарская, 98"]
[]
[null,null,null,null,null,null,"Руководитель"]
[null,null,null,null,null,"Фамилия, имя, отчество","Григорьев Ганнадий Александрович"]
[null,null,null,null,null,"(код) номер телефона","(4132) 606-385"]
[]
[null,null,null,null,null,null,"Главный бухгалтер"]
[null,null,null,null,null,"Фамилия, имя, отчество","Гурьянова Елена Викторовна"]
[null,null,null,null,null,"(код) номер телефона","(4132) 606-247"]
[]
[null,null,null,null,null,null,"Должностное лицо, ответственное за составление формы"]
[null,null,null,null,null,"Фамилия, имя, отчество","Лукаш Наталья Валентиновна"]
[null,null,null,null,null,"Должность","зам. начальника службы сбыта электроэнергии"]
[null,null,null,null,null,"(код) номер телефона","(4132) 633-357"]
[null,null,null,null,null,"e-mail","ses@oaomes.ru"]
[]
[]
[]
[]
[]
[]
[null,null,null,null,"Дата последнего обновления реестра МР/МО:\r13.02.2017 14:26:48"]
[null,null,null,null,"Дата последнего обновления реестра организаций: 13.02.2017 14:27:27"]

{"sheet":"Отпуск ЭЭ сет организациями","index":5,"n_rows":96,"n_cols":17,"rows_kept":96,"cut":false,"hidden":false,"merged":[[94,4,94,6],[95,4,95,6],[87,4,87,7],[87,9,87,10],[88,4,88,7],[88,9,88,10],[91,4,91,5],[92,11,92,12],[10,3,11,3],[10,4,11,4],[10,5,11,5],[10,6,10,9],[91,7,91,9],[35,3,35,9],[57,3,57,9],[61,3,61,9],[72,3,72,9],[13,3,13,9],[92,4,92,5],[92,7,92,9]]}
[]
[]
[]
[]
[null,null,null,null,null,"L1","L1.1","L1.2","L2","L2.1","L2.2","L3","L3.1","L3.2","L4","L4.1","L4.2"]
[]
[]
[null,null,null,"Сведения об отпуске (передаче) электроэнергии распределительными сетевыми организациями отдельным категориям потребителей"]
[null,null,null,{"$f":"IF(org=\"\",\"Не определено\",org)","v":"АО \"Магаданэлектросеть\""}]
[null,null,null,null,null,null,null,null,null,"Коды по ОКЕИ: 1000 киловатт-часов – 246, мегаватт – 215, тысяча рублей – 384"]
[null,null,null,"Наименование показателя","Код строки","Всего","В том числе по уровню напряжения"]
[null,null,null,null,null,null,"ВН","СН1","СН2","НН"]
[null,null,null,1,2,3,4,5,6,7]
[null,null,null,"Электроэнергия (тыс. кВт ч)"]
[null,null,null,"Поступление в сеть из других организаций, в том числе: ",10,{"$f":"SUM(G15:J15)","v":0}]
[null,null,null,"из сетей ФСК",20,{"$f":"SUM(G16:J16)","v":0}]
[null,null,null,"от генерирующих компаний и блок-станций",30,0]
[null,null,null,"от смежных сетевых организаций",40,0]
[null,null,null,"Поступление в сеть из других уровней напряжения (трансформация)",50,34474.180999999997,null,null,34474.180999999997]
[null,null,null,"ВН",60,7223.0860000000002,null,null,7223.0860000000002]
[null,null,null,"СН1",70,27165.433000000001,null,null,27165.433000000001]
[null,null,null,"СН2",80,85.662000000000006,null,null,85.662000000000006]
[null,null,null,"НН ",90,0]
[null,null,null,"Отпуск из сети, в том числе: ",100,33061.998569999996,null,null,33061.998569999996]
[null,null,null,"конечные потребители - юридические лица (кроме совмещающих с передачей)",110,22108.914811999999,null,null,15500.233811999999,6608.6809999999996]
[null,null,null,"население и приравненные к ним группы",120,10953.083757999999,null,null,null,10953.083757999999]
[null,null,null,"другие сети, в том числе потребители имеющие статус ТСО",130,0]
[null,null,null,"поставщики",140,0]
[null,null,null,"Отпуск в сеть других уровней напряжения",150,0]
[null,null,null,"Хозяйственные нужды организации",160,29,null,null,13,16]
[null,null,null,"Генерация на установках организации (совмещение деятельности)",170,0]
[null,null,null,"Собственное потребление (совмещение деятельности)",180,172.46,null,null,172.46]
[null,null,null,"Потери, в том числе:",190,1210.7224300000016,null,null,570.92744244666278,639.79498755333873]
[null,null,null,"относимые на собственное потребление ",200,7.0752120477583018,null,null,7.0752120477583018]
[null,null,null,"Небаланс",210,-1.0231815394945443E-12,{"$f":"(G15+G19+G31)-(G24+G29+G30+G32+G33)","v":0},{"$f":"(H15+H19+H31)-(H24+H29+H30+H32+H33)","v":0},{"$f":"(I15+I19+I31)-(I24+I29+I30+I32+I33)","v":655.79498755333771},{"$f":"(J15+J19+J31)-(J24+J29+J30+J32+J33)","v":-655.79498755333873}]
[null,null,null,"Мощность (МВт)"]
[null,null,null,"Поступление в сеть из других организаций, в том числе: ",300,0]
[null,null,null,"из сетей ФСК",310,0]
[null,null,null,"от генерирующих компаний и блок-станций",320,0]
[null,null,null,"от смежных сетевых организаций",330,0]
[null,null,null,"Поступление в сеть из других уровней напряжения (трансформация)",340,67.2,null,null,67.2]
[null,null,null,"ВН",350,11.8,null,null,11.8]
[null,null,null,"СН1",360,55.326080000000005,null,null,55.326080000000005]
[null,null,null,"СН2",370,7.3920000000000013E-2,null,null,7.3920000000000013E-2]
[null,null,null,"НН ",380,0]
[null,null,null,"Отпуск из сети, в том числе: ",390,64.444800000000001,null,null,64.444800000000001]
[null,null,null,"конечные потребители - юридические лица (кроме совмещающих с передачей)",400,43.094932396773665,null,null,30.213220953737935,12.881711443035732]
[null,null,null,"население и приравненные к ним группы",410,21.349867603226336,null,null,null,21.349867603226336]
[null,null,null,"другие сети",420,0]
[null,null,null,"поставщики",430,0]
[null,null,null,"Отпуск в сеть других уровней напряжения",440,0]
[null,null,null,"Хозяйственные нужды организации",450,0.4,null,null,0.1,0.3]
[null,null,null,"Генерация на установках организации (совмещение деятельности)",460,0]
[null,null,null,"Собственное потребление (совмещение деятельности)",470,1,null,null,1]
[null,null,null,"Потери, в том числе:",480,1.3552000000000022,null,null,0.63905718671100986,0.71614281328899221]
[null,null,null,"относимые на собственное потребление ",490,0.2,null,null,0.2]
[null,null,null,"Небаланс",500,0,{"$f":"(G37+G41+G53)-(G46+G51+G52+G54+G55)","v":0},{"$f":"(H37+H41+H53)-(H46+H51+H52+H54+H55)","v":0},{"$f":"(I37+I41+I53)-(I46+I51+I52+I54+I55)","v":1.0161428132889938},{"$f":"(J37+J41+J53)-(J46+J51+J52+J54+J55)","v":-1.0161428132889923}]
[null,null,null,"Мощность (МВт)"]
[null,null,null,"Заявленная мощность",600,0]
[null,null,null,"Максимальная мощность",610,0]
[null,null,null,"Резервируемая мощность",620,0]
[null,null,null,"Фактический полезный отпуск конечным потребителям (тыс кВт ч)"]
[null,null,null,"Полезный отпуск конечным потребителям, в том числе:",700,33061.998569999996,null,null,33061.998569999996]
[null,null,null,"по одноставочному тарифу",710,33061.998569999996,null,null,15500.233811999999,17561.764757999998]
[null,null,null,"по двухставочному тарифу, в том числе:",720,0]
[null,null,null,"мощность",730,0]
[null,null,null,"компенсация потерь",740,0]
[null,null,null,"Полезный отпуск потребителям ГП, ЭСО, ЭСК, в том числе:",750,0]
[null,null,null,"по одноставочному тарифу",760,0]
[null,null,null,"по двухставочному тарифу, в том числе:",770,0]
[null,null,null,"мощность",780,0]
[null,null,null,"компенсация потерь",790,0]
[null,null,null,"Стоимость услуг (тыс руб)"]
[null,null,null,"Полезный отпуск конечным потребителям, в том числе:",800,159841.05730284,null,null,71632.928773560008,88208.128529279973]
[null,null,null,"по одноставочному тарифу",810,159841.05730284,null,null,71632.928773560008,88208.128529279973]
[null,null,null,"по двухставочному тарифу, в том числе:",820,0]
[null,null,null,"мощность",830,0]
[null,null,null,"компенсация потерь",840,0]
[null,null,null,"Полезный отпуск потребителям ГП, ЭСО, ЭСК, в том числе:",850,0]
[null,null,null,"по одноставочному тарифу",860,{"$f":"SUM(G80:J80)","v":0}]
[null,null,null,"по двухставочному тарифу, в том числе:",870,0]
[null,null,null,"мощность",880,0]
[null,null,null,"компенсация потерь",890,0]
[null,null,null,"Стоимость услуг ФСК, в том числе:",900,0]
[null,null,null,"компенсация потерь",910,0]
[null,null,null,"мощность",920,0]
[]
[null,null,null,"Руководитель организации",{"$f":"IF(Титульный!G34=\"\",\"\",Титульный!G34)","v":"Григорьев Ганнадий Александрович"}]
[null,null,null,null,"(Ф.И.О.)",null,null,null,null,"(подпись)"]
[]
[]
[null,null,null,"Должностное лицо,",{"$f":"IF(Титульный!G43=\"\",\"\",Титульный!G43)","v":"зам. начальника службы сбыта электроэнергии"},null,null,{"$f":"IF(Титульный!G42=\"\",\"\",Титульный!G42)","v":"Лукаш Наталья Валентиновна"}]
[null,null,null," ответственное за","(должность)",null,null,"(Ф.И.О.)",null,null,null,"(подпись)"]
[null,null,null,"составление формы"]
[null,null,null,null,{"$f":"IF(Титульный!G44=\"\",\"\",Титульный!G44)","v":"(4132) 633-357"},null,null,null,"«____» _________20__ год"]
[null,null,null,null,"(номер контактного телефона)",null,null,null,"(дата составления документа)"]

{"sheet":"Комментарии","index":6,"n_rows":14,"n_cols":5,"rows_kept":14,"cut":false,"hidden":false,"merged":[]}
[]
[]
[]
[]
[]
[]
[]
[null,null,null,"Комментарии"]
[null,null,null,{"$f":"IF(org=\"\",\"Не определено\",org)","v":"АО \"Магаданэлектросеть\""}]
[]
[null,null,null,"№ п/п","Комментарий"]
[null,null,null,1,2]
[null,null,null,0]
[null,null,null,null,"Добавить комментарий"]

{"sheet":"Проверка","index":7,"n_rows":5,"n_cols":4,"rows_kept":5,"cut":false,"hidden":false,"merged":[[1,1,1,3]]}
[]
[null,"Результат проверки"]
[null,{"$f":"IF(org=\"\",\"Не определено\",org)","v":"АО \"Магаданэлектросеть\""}]
[]
[null,"Ссылка","Причина","Статус"]

{"sheet":"Statistic","index":8,"n_rows":24,"n_cols":3,"rows_kept":24,"cut":false,"hidden":true,"merged":[]}
[24]
["13.02.2017 14:25:43","14.0","Windows (32-bit) NT 5.01"]
["13.02.2017 14:59:06","14.0","Windows (32-bit) NT 5.01"]
["13.02.2017 16:23:33","14.0","Windows (32-bit) NT 5.01"]
["13.03.2017 16:20:17","14.0","Windows (32-bit) NT 5.01"]
["11.04.2017 18:20:25","14.0","Windows (32-bit) NT 5.01"]
["15.05.2017 08:28:54","14.0","Windows (32-bit) NT 5.01"]
["07.06.2017 11:04:38","14.0","Windows (32-bit) NT 5.01"]
["12.07.2017 11:04:36","14.0","Windows (32-bit) NT 5.01"]
["10.08.2017 16:11:10","14.0","Windows (32-bit) NT 5.01"]
["10.08.2017 16:12:30","14.0","Windows (32-bit) NT 5.01"]
["18.09.2017 13:31:57","14.0","Windows (32-bit) NT 5.01"]
["19.09.2017 15:04:06","14.0","Windows (32-bit) NT 5.01"]
["19.09.2017 15:06:19","14.0","Windows (32-bit) NT 5.01"]
["13.10.2017 12:01:36","14.0","Windows (32-bit) NT 5.01"]
["14.11.2017 12:25:57","14.0","Windows (32-bit) NT 5.01"]
["13.12.2017 11:56:08","14.0","Windows (32-bit) NT 5.01"]
["16.01.2018 12:55:31","14.0","Windows (32-bit) NT 5.01"]
["17.01.2018 15:41:53","14.0","Windows (32-bit) NT 5.01"]
["17.01.2018 15:49:13","14.0","Windows (32-bit) NT 5.01"]
["25.01.2018 10:36:27","14.0","Windows (32-bit) NT 5.01"]
["12.02.2018 09:49:54","14.0","Windows (32-bit) NT 5.01"]
["13.02.2018 08:40:03","14.0","Windows (32-bit) NT 5.01"]
["13.03.2018 10:35:55","14.0","Windows (32-bit) NT 5.01"]

{"sheet":"TEHSHEET","index":9,"n_rows":86,"n_cols":6,"rows_kept":86,"cut":false,"hidden":true,"merged":[]}
[null,"Алтайский край",null,"MONTH","YEAR","DaNet"]
[0,"Амурская область",null,"январь",2016,"Да"]
[null,"Архангельская область",null,"февраль",2017,"Нет"]
[null,"Астраханская область",null,"март",2018]
[null,"Белгородская область",null,"апрель",2019]
[null,"Брянская область",null,"май",2020]
[null,"Владимирская область",null,"июнь"]
[null,"Волгоградская область",null,"июль"]
[null,"Вологодская область",null,"август"]
[null,"Воронежская область",null,"сентябрь"]
[null,"г.Байконур",null,"октябрь"]
[null,"г. Москва",null,"ноябрь"]
[null,"г.Санкт-Петербург",null,"декабрь"]
[null,"г.Севастополь",null,"год"]
[null,"Еврейская автономная область"]
[null,"Забайкальский край"]
[null,"Ивановская область"]
[null,"Иркутская область"]
[null,"Кабардино-Балкарская республика"]
[null,"Калининградская область"]
[null,"Калужская область"]
[null,"Камчатский край"]
[null,"Карачаево-Черкесская республика"]
[null,"Кемеровская область"]
[null,"Кировская область"]
[null,"Костромская область"]
[null,"Краснодарский край"]
[null,"Красноярский край"]
[null,"Курганская область"]
[null,"Курская область"]
[null,"Ленинградская область"]
[null,"Липецкая область"]
[null,"Магаданская область"]
[null,"Московская область"]
[null,"Мурманская область"]
[null,"Ненецкий автономный округ"]
[null,"Нижегородская область"]
[null,"Новгородская область"]
[null,"Новосибирская область"]
[null,"Омская область"]
[null,"Оренбургская область"]
[null,"Орловская область"]
[null,"Пензенская область"]
[null,"Пермский край"]
[null,"Приморский край"]
[null,"Псковская область"]
[null,"Республика Адыгея"]
[null,"Республика Алтай"]
[null,"Республика Башкортостан"]
[null,"Республика Бурятия"]
[null,"Республика Дагестан"]
[null,"Республика Ингушетия"]
[null,"Республика Калмыкия"]
[null,"Республика Карелия"]
[null,"Республика Коми"]
[null,"Республика Крым"]
[null,"Республика Марий Эл"]
[null,"Республика Мордовия"]
[null,"Республика Саха (Якутия)"]
[null,"Республика Северная Осетия-Алания"]
[null,"Республика Татарстан"]
[null,"Республика Тыва"]
[null,"Республика Хакасия"]
[null,"Ростовская область"]
[null,"Рязанская область"]
[null,"Самарская область"]
[null,"Саратовская область"]
[null,"Сахалинская область"]
[null,"Свердловская область"]
[null,"Смоленская область"]
[null,"Ставропольский край"]
[null,"Тамбовская область"]
[null,"Тверская область"]
[null,"Томская область"]
[null,"Тульская область"]
[null,"Тюменская область"]
[null,"Удмуртская республика"]
[null,"Ульяновская область"]
[null,"Хабаровский край"]
[null,"Ханты-Мансийский автономный округ"]
[null,"Челябинская область"]
[null,"Чеченская республика"]
[null,"Чувашская республика"]
[null,"Чукотский автономный округ"]
[null,"Ямало-Ненецкий автономный округ"]
[null,"Ярославская область"]

{"sheet":"et_union","index":10,"n_rows":3,"n_cols":4,"rows_kept":3,"cut":false,"hidden":true,"merged":[]}
[]
["et_com"]
[null,null,"О",1]

{"sheet":"AllSheetsInThisWorkbook","index":11,"n_rows":22,"n_cols":2,"rows_kept":22,"cut":false,"hidden":true,"merged":[]}
["Расчетные листы","Скрытые листы"]
["Инструкция","Statistic"]
["Лог обновления","TEHSHEET"]
["Титульный","et_union"]
["Отпуск ЭЭ сет организациями","AllSheetsInThisWorkbook"]
["Комментарии","mod_01"]
["Проверка","mod_11"]
[null,"modComm"]
[null,"modButton"]
[null,"modInstruction"]
[null,"modHTTP"]
[null,"REESTR_ORG"]
[null,"REESTR_MO"]
[null,"modfrmRegion"]
[null,"modfrmReestr"]
[null,"modfrmCheckUpdates"]
[null,"modReestr"]
[null,"modListProv"]
[null,"modUpdTemplMain"]
[null,"modDoubleClick"]
[null,"modHyperlink"]
[null,"modfrmDateChoose"]

{"sheet":"mod_11","index":12,"n_rows":0,"n_cols":0,"rows_kept":0,"cut":false,"hidden":true,"merged":[]}

{"sheet":"modComm","index":13,"n_rows":0,"n_cols":0,"rows_kept":0,"cut":false,"hidden":true,"merged":[]}

{"sheet":"modButton","index":14,"n_rows":0,"n_cols":0,"rows_kept":0,"cut":false,"hidden":true,"merged":[]}

{"sheet":"modInstruction","index":15,"n_rows":0,"n_cols":0,"rows_kept":0,"cut":false,"hidden":true,"merged":[]}

{"sheet":"modHTTP","index":16,"n_rows":0,"n_cols":0,"rows_kept":0,"cut":false,"hidden":true,"merged":[]}

{"sheet":"REESTR_ORG","index":17,"n_rows":304,"n_cols":11,"rows_kept":304,"cut":false,"hidden":true,"merged":[]}
[null,"NSRF","MR_NAME","OKTMO_MR_NAME","MO_NAME","OKTMO_NAME","RST_ORG_ID","ORG_NAME","INN_NAME","KPP_NAME","VDET_NAME"]
[1,"Магаданская область","Город Магадан","44701000","Город Магадан","44701000","26319197","АО \"Магаданэлектросеть\"","4909044901","490901001","Сбытовая компания"]
[2,"Магаданская область","Город Магадан","44701000","Город Магадан","44701000","26319197","АО \"Магаданэлектросеть\"","4909044901","490901001","Сетевая компания"]
[3,"Магаданская область","Город Магадан","44701000","Город Магадан","44701000","26617350","АО \"Оборонэнергосбыт\"","7704731218","773043001","Сбытовая компания"]
[4,"Магаданская область","Город Магадан","44701000","Город Магадан","44701000","26506888","АО \"Теплоэнергосервис\"","1435191592","144950001","ЭСО"]
[5,"Магаданская область","Город Магадан","44701000","Город Магадан","44701000","26506888","АО \"Теплоэнергосервис\"","1435191592","144950001","Сетевая компания"]
[6,"Магаданская область","Город Магадан","44701000","Город Магадан","44701000","26802811","АО \"Усть-Среднеканская ГЭС\"","4909095293","490901001","Станция - поставщик ЭЭ"]
[7,"Магаданская область","Город Магадан","44701000","Город Магадан","44701000","26802811","АО \"Усть-Среднеканская ГЭС\"","4909095293","490901001","Сетевая компания"]
[8,"Магаданская область","Город Магадан","44701000","Город Магадан","44701000","26802811","АО \"Усть-Среднеканская ГЭС\"","4909095293","490901001","Региональная генерация"]
[9,"Магаданская область","Город Магадан","44701000","Город Магадан","44701000","28042880","ОАО \"Аэропорт Магадан\"","4909115648","490901001","Сетевая компания"]
[10,"Магаданская область","Город Магадан","44701000","Город Магадан","44701000","28445259","ОАО \"РАО ЭС Востока\"","2801133630","997450001","Региональная генерация"]
[11,"Магаданская область","Город Магадан","44701000","Город Магадан","44701000","28445259","ОАО \"РАО ЭС Востока\"","2801133630","997450001","Станция - поставщик ЭЭ"]
[12,"Магаданская область","Город Магадан","44701000","Город Магадан","44701000","26823100","ООО \"ДАЛЬЭНЕРГОГАРАНТ\"","4909084157","490901001","Сетевая компания"]
[13,"Магаданская область","Город Магадан","44701000","Город Магадан","44701000","26823108","ООО \"Региональные энергетические системы\"","4902010798","490201001","Станция - поставщик ЭЭ"]
[14,"Магаданская область","Город Магадан","44701000","Город Магадан","44701000","26823108","ООО \"Региональные энергетические системы\"","4902010798","490201001","ЭСО"]
[15,"Магаданская область","Город Магадан","44701000","Город Магадан","44701000","26823108","ООО \"Региональные энергетические системы\"","4902010798","490201001","Региональная генерация"]
[16,"Магаданская область","Город Магадан","44701000","Город Магадан","44701000","26823108","ООО \"Региональные энергетические системы\"","4902010798","490201001","Сетевая компания"]
[17,"Магаданская область","Город Магадан","44701000","Город Магадан","44701000","26823108","ООО \"Региональные энергетические системы\"","4902010798","490201001","Сбытовая компания"]
[18,"Магаданская область","Город Магадан","44701000","Город Магадан","44701000","26507188","Оймяконский филиал АО \"Теплоэнергосервис\"","1435191592","142003001","Сетевая компания"]
[19,"Магаданская область","Город Магадан","44701000","Город Магадан","44701000","26415510","ПАО \"Колымаэнерго\"","4908000718","997450001","Сетевая компания"]
[20,"Магаданская область","Город Магадан","44701000","Город Магадан","44701000","26415510","ПАО \"Колымаэнерго\"","4908000718","997450001","Сбытовая компания"]
[21,"Магаданская область","Город Магадан","44701000","Город Магадан","44701000","26415510","ПАО \"Колымаэнерго\"","4908000718","997450001","Региональная генерация"]
[22,"Магаданская область","Город Магадан","44701000","Город Магадан","44701000","26415510","ПАО \"Колымаэнерго\"","4908000718","997450001","Станция - поставщик ЭЭ"]
[23,"Магаданская область","Город Магадан","44701000","Город Магадан","44701000","28139521","ПАО \"Магаданский морской торговый порт\"","4909047613","490950001","Сетевая компания"]
[24,"Магаданская область","Город Магадан","44701000","Город Магадан","44701000","28139521","ПАО \"Магаданский морской торговый порт\"","4909047613","490950001","Сбытовая компания"]
[25,"Магаданская область","Город Магадан","44701000","Город Магадан","44701000","26319198","ПАО \"Магаданэнерго\"","4909047148","490901001","Сбытовая компания"]
[26,"Магаданская область","Город Магадан","44701000","Город Магадан","44701000","26319198","ПАО \"Магаданэнерго\"","4909047148","490901001","Станция - поставщик ЭЭ"]
[27,"Магаданская область","Город Магадан","44701000","Город Магадан","44701000","26319198","ПАО \"Магаданэнерго\"","4909047148","490901001","Региональная генерация"]
[28,"Магаданская область","Город Магадан","44701000","Город Магадан","44701000","26319198","ПАО \"Магаданэнерго\"","4909047148","490901001","Сетевая компания"]
[29,"Магаданская область","Город Магадан","44701000","Город Магадан","44701000","26415482","ПАО \"Магаданэнерго\" филиал \"Магаданская ТЭЦ\"","4909047148","490903004","Станция - поставщик ЭЭ"]
[30,"Магаданская область","Город Магадан","44701000","Город Магадан","44701000","26415482","ПАО \"Магаданэнерго\" филиал \"Магаданская ТЭЦ\"","4909047148","490903004","Региональная генерация"]
[31,"Магаданская область","Город Магадан","44701000","Город Магадан","44701000","26437342","ПАО \"Магаданэнерго\" филиал \"Магаданэнергосбыт\"","4909047148","490903006","Сбытовая компания"]
[32,"Магаданская область","Город Магадан","44701000","Город Магадан","44701000","26415549","Филиал \"Колымские электрические сети\" ПАО \"Колымаэнерго\"","4908000718","490402001","Сбытовая компания"]
[33,"Магаданская область","Город Магадан","44701000","Город Магадан","44701000","26415549","Филиал \"Колымские электрические сети\" ПАО \"Колымаэнерго\"","4908000718","490402001","Сетевая компания"]
[34,"Магаданская область","Ольский","44702000","Ольский","44702000","26357514","МУП ЖКХ \"Ямское\"","4901007714","490101001","Региональная генерация"]
[35,"Магаданская область","Ольский","44702000","Ольский","44702000","26357514","МУП ЖКХ \"Ямское\"","4901007714","490101001","Станция - поставщик ЭЭ"]
[36,"Магаданская область","Ольский","44702000","Ольский","44702000","26357514","МУП ЖКХ \"Ямское\"","4901007714","490101001","Сбытовая компания"]
[37,"Магаданская область","Ольский","44702000","Ольский","44702000","26805708","ОАО \"ОлаИнтерКом\"","4901008429","490101001","Сетевая компания"]
[38,"Магаданская область","Ольский","44702000","Ольский","44702000","26805708","ОАО \"ОлаИнтерКом\"","4901008429","490101001","Сбытовая компания"]
[39,"Магаданская область","Ольский","44702000","Ольский","44702000","26805708","ОАО \"ОлаИнтерКом\"","4901008429","490101001","Станция - поставщик ЭЭ"]
[40,"Магаданская область","Ольский","44702000","Ольский","44702000","26805708","ОАО \"ОлаИнтерКом\"","4901008429","490101001","Региональная генерация"]
[41,"Магаданская область","Ольский","44702000","Ольский","44702000","26373323","ООО \"Тахтоямск-Энергия\"","4901006982","490101001","Сбытовая компания"]
[42,"Магаданская область","Ольский","44702000","Ольский","44702000","26373323","ООО \"Тахтоямск-Энергия\"","4901006982","490101001","Региональная генерация"]
[43,"Магаданская область","Ольский","44702000","Ольский","44702000","26373323","ООО \"Тахтоямск-Энергия\"","4901006982","490101001","Станция - поставщик ЭЭ"]
[44,"Магаданская область","Ольский","44702000","Ольский","44702000","26823094","ООО \"Энергетик\"","4901008281","490101001","Сетевая компания"]
[45,"Магаданская область","Ольский муниципальный район","44601000","Поселок Армань","44601401","26805708","ОАО \"ОлаИнтерКом\"","4901008429","490101001","Региональная генерация"]
[46,"Магаданская область","Ольский муниципальный район","44601000","Поселок Армань","44601401","26805708","ОАО \"ОлаИнтерКом\"","4901008429","490101001","Станция - поставщик ЭЭ"]
[47,"Магаданская область","Ольский муниципальный район","44601000","Поселок Армань","44601401","26805708","ОАО \"ОлаИнтерКом\"","4901008429","490101001","Сетевая компания"]
[48,"Магаданская область","Ольский муниципальный район","44601000","Поселок Армань","44601401","26805708","ОАО \"ОлаИнтерКом\"","4901008429","490101001","Сбытовая компания"]
[49,"Магаданская область","Ольский муниципальный район","44601000","Поселок Ола","44601151","26823094","ООО \"Энергетик\"","4901008281","490101001","Сетевая компания"]
[50,"Магаданская область","Ольский муниципальный район","44601000","Село Балаганное","44601402","26805708","ОАО \"ОлаИнтерКом\"","4901008429","490101001","Сбытовая компания"]
[51,"Магаданская область","Ольский муниципальный район","44601000","Село Балаганное","44601402","26805708","ОАО \"ОлаИнтерКом\"","4901008429","490101001","Сетевая компания"]
[52,"Магаданская область","Ольский муниципальный район","44601000","Село Балаганное","44601402","26805708","ОАО \"ОлаИнтерКом\"","4901008429","490101001","Региональная генерация"]
[53,"Магаданская область","Ольский муниципальный район","44601000","Село Балаганное","44601402","26805708","ОАО \"ОлаИнтерКом\"","4901008429","490101001","Станция - поставщик ЭЭ"]
[54,"Магаданская область","Ольский муниципальный район","44601000","Село Гадля","44601404","26805708","ОАО \"ОлаИнтерКом\"","4901008429","490101001","Сетевая компания"]
[55,"Магаданская область","Ольский муниципальный район","44601000","Село Гадля","44601404","26805708","ОАО \"ОлаИнтерКом\"","4901008429","490101001","Сбытовая компания"]
[56,"Магаданская область","Ольский муниципальный район","44601000","Село Гадля","44601404","26805708","ОАО \"ОлаИнтерКом\"","4901008429","490101001","Региональная генерация"]
[57,"Магаданская область","Ольский муниципальный район","44601000","Село Гадля","44601404","26805708","ОАО \"ОлаИнтерКом\"","4901008429","490101001","Станция - поставщик ЭЭ"]
[58,"Магаданская область","Ольский муниципальный район","44601000","Село Клепка","44601407","26805708","ОАО \"ОлаИнтерКом\"","4901008429","490101001","Сетевая компания"]
[59,"Магаданская область","Ольский муниципальный район","44601000","Село Клепка","44601407","26805708","ОАО \"ОлаИнтерКом\"","4901008429","490101001","Сбытовая компания"]
[60,"Магаданская область","Ольский муниципальный район","44601000","Село Клепка","44601407","26805708","ОАО \"ОлаИнтерКом\"","4901008429","490101001","Региональная генерация"]
[61,"Магаданская область","Ольский муниципальный район","44601000","Село Клепка","44601407","26805708","ОАО \"ОлаИнтерКом\"","4901008429","490101001","Станция - поставщик ЭЭ"]
[62,"Магаданская область","Ольский муниципальный район","44601000","Село Талон","44601409","26805708","ОАО \"ОлаИнтерКом\"","4901008429","490101001","Сбытовая компания"]
[63,"Магаданская область","Ольский муниципальный район","44601000","Село Талон","44601409","26805708","ОАО \"ОлаИнтерКом\"","4901008429","490101001","Региональная генерация"]
[64,"Магаданская область","Ольский муниципальный район","44601000","Село Талон","44601409","26805708","ОАО \"ОлаИнтерКом\"","4901008429","490101001","Сетевая компания"]
[65,"Магаданская область","Ольский муниципальный район","44601000","Село Талон","44601409","26805708","ОАО \"ОлаИнтерКом\"","4901008429","490101001","Станция - поставщик ЭЭ"]
[66,"Магаданская область","Ольский муниципальный район","44601000","Село Тауйск","44601410","26805708","ОАО \"ОлаИнтерКом\"","4901008429","490101001","Региональная генерация"]
[67,"Магаданская область","Ольский муниципальный район","44601000","Село Тауйск","44601410","26805708","ОАО \"ОлаИнтерКом\"","4901008429","490101001","Сбытовая компания"]
[68,"Магаданская область","Ольский муниципальный район","44601000","Село Тауйск","44601410","26805708","ОАО \"ОлаИнтерКом\"","4901008429","490101001","Станция - поставщик ЭЭ"]
[69,"Магаданская область","Ольский муниципальный район","44601000","Село Тауйск","44601410","26805708","ОАО \"ОлаИнтерКом\"","4901008429","490101001","Сетевая компания"]
[70,"Магаданская область","Ольский муниципальный район","44601000","Село Тахтоямск","44601413","26373323","ООО \"Тахтоямск-Энергия\"","4901006982","490101001","Сбытовая компания"]
[71,"Магаданская область","Ольский муниципальный район","44601000","Село Тахтоямск","44601413","26373323","ООО \"Тахтоямск-Энергия\"","4901006982","490101001","Региональная генерация"]
[72,"Магаданская область","Ольский муниципальный район","44601000","Село Тахтоямск","44601413","26373323","ООО \"Тахтоямск-Энергия\"","4901006982","490101001","Станция - поставщик ЭЭ"]
[73,"Магаданская область","Ольский муниципальный район","44601000","Село Ямск","44601416","26357514","МУП ЖКХ \"Ямское\"","4901007714","490101001","Сбытовая компания"]
[74,"Магаданская область","Ольский муниципальный район","44601000","Село Ямск","44601416","26357514","МУП ЖКХ \"Ямское\"","4901007714","490101001","Региональная генерация"]
[75,"Магаданская область","Ольский муниципальный район","44601000","Село Ямск","44601416","26357514","МУП ЖКХ \"Ямское\"","4901007714","490101001","Станция - поставщик ЭЭ"]
[76,"Магаданская область","Ольский муниципальный район","44601000","Село Ямск","44601416","26805708","ОАО \"ОлаИнтерКом\"","4901008429","490101001","Сбытовая компания"]
[77,"Магаданская область","Ольский муниципальный район","44601000","Село Ямск","44601416","26805708","ОАО \"ОлаИнтерКом\"","4901008429","490101001","Региональная генерация"]
[78,"Магаданская область","Ольский муниципальный район","44601000","Село Ямск","44601416","26805708","ОАО \"ОлаИнтерКом\"","4901008429","490101001","Сетевая компания"]
[79,"Магаданская область","Ольский муниципальный район","44601000","Село Ямск","44601416","26805708","ОАО \"ОлаИнтерКом\"","4901008429","490101001","Станция - поставщик ЭЭ"]
[80,"Магаданская область","Омсукчанский муниципальный район","44604000","Поселок Дукат","44604155","26823108","ООО \"Региональные энергетические системы\"","4902010798","490201001","Сбытовая компания"]
[81,"Магаданская область","Омсукчанский муниципальный район","44604000","Поселок Дукат","44604155","26823108","ООО \"Региональные энергетические системы\"","4902010798","490201001","Региональная генерация"]
[82,"Магаданская область","Омсукчанский муниципальный район","44604000","Поселок Дукат","44604155","26823108","ООО \"Региональные энергетические системы\"","4902010798","490201001","Сетевая компания"]
[83,"Магаданская область","Омсукчанский муниципальный район","44604000","Поселок Дукат","44604155","26823108","ООО \"Региональные энергетические системы\"","4902010798","490201001","ЭСО"]
[84,"Магаданская область","Омсукчанский муниципальный район","44604000","Поселок Дукат","44604155","26823108","ООО \"Региональные энергетические системы\"","4902010798","490201001","Станция - поставщик ЭЭ"]
[85,"Магаданская область","Омсукчанский муниципальный район","44604000","Поселок Омсукчан","44604151","26823108","ООО \"Региональные энергетические системы\"","4902010798","490201001","Региональная генерация"]
[86,"Магаданская область","Омсукчанский муниципальный район","44604000","Поселок Омсукчан","44604151","26823108","ООО \"Региональные энергетические системы\"","4902010798","490201001","Сбытовая компания"]
[87,"Магаданская область","Омсукчанский муниципальный район","44604000","Поселок Омсукчан","44604151","26823108","ООО \"Региональные энергетические системы\"","4902010798","490201001","Станция - поставщик ЭЭ"]
[88,"Магаданская область","Омсукчанский муниципальный район","44604000","Поселок Омсукчан","44604151","26823108","ООО \"Региональные энергетические системы\"","4902010798","490201001","Сетевая компания"]
[89,"Магаданская область","Омсукчанский муниципальный район","44604000","Поселок Омсукчан","44604151","26823108","ООО \"Региональные энергетические системы\"","4902010798","490201001","ЭСО"]
[90,"Магаданская область","Северо-Эвенский","44707000","Северо-Эвенский","44707000","28422251","УМП \"Коммунальная энергетика\" поселка Эвенск Магаданской области","4909116916","490301001","Региональная генерация"]
[91,"Магаданская область","Северо-Эвенский","44707000","Северо-Эвенский","44707000","28422251","УМП \"Коммунальная энергетика\" поселка Эвенск Магаданской области","4909116916","490301001","Сбытовая компания"]
[92,"Магаданская область","Северо-Эвенский","44707000","Северо-Эвенский","44707000","28422251","УМП \"Коммунальная энергетика\" поселка Эвенск Магаданской области","4909116916","490301001","Станция - поставщик ЭЭ"]
[93,"Магаданская область","Северо-Эвенский муниципальный район","44607000","Поселок Эвенск","44607151","28422251","УМП \"Коммунальная энергетика\" поселка Эвенск Магаданской области","4909116916","490301001","Сбытовая компания"]
[94,"Магаданская область","Северо-Эвенский муниципальный район","44607000","Поселок Эвенск","44607151","28422251","УМП \"Коммунальная энергетика\" поселка Эвенск Магаданской области","4909116916","490301001","Станция - поставщик ЭЭ"]
[95,"Магаданская область","Северо-Эвенский муниципальный район","44607000","Поселок Эвенск","44607151","28422251","УМП \"Коммунальная энергетика\" поселка Эвенск Магаданской области","4909116916","490301001","Региональная генерация"]
[96,"Магаданская область","Северо-Эвенский муниципальный район","44607000","Поселок Эвенск","44607151","26408175","УМП \"Эвенская электротеплосеть\" поселка Эвенск Магаданской области","4903002976","490301001","Сбытовая компания"]
[97,"Магаданская область","Северо-Эвенский муниципальный район","44607000","Поселок Эвенск","44607151","26408175","УМП \"Эвенская электротеплосеть\" поселка Эвенск Магаданской области","4903002976","490301001","Сетевая компания"]
[98,"Магаданская область","Северо-Эвенский муниципальный район","44607000","Поселок Эвенск","44607151","26408175","УМП \"Эвенская электротеплосеть\" поселка Эвенск Магаданской области","4903002976","490301001","Станция - поставщик ЭЭ"]
[99,"Магаданская область","Северо-Эвенский муниципальный район","44607000","Поселок Эвенск","44607151","26408175","УМП \"Эвенская электротеплосеть\" поселка Эвенск Магаданской области","4903002976","490301001","Региональная генерация"]
[100,"Магаданская область","Северо-Эвенский муниципальный район","44607000","Поселок Эвенск","44607151","26408175","УМП \"Эвенская электротеплосеть\" поселка Эвенск Магаданской области","4903002976","490301001","ЭСО"]
[101,"Магаданская область","Северо-Эвенский муниципальный район","44607000","Село Верхний Парень","44607402","28422251","УМП \"Коммунальная энергетика\" поселка Эвенск Магаданской области","4909116916","490301001","Станция - поставщик ЭЭ"]
[102,"Магаданская область","Северо-Эвенский муниципальный район","44607000","Село Верхний Парень","44607402","28422251","УМП \"Коммунальная энергетика\" поселка Эвенск Магаданской области","4909116916","490301001","Региональная генерация"]
[103,"Магаданская область","Северо-Эвенский муниципальный район","44607000","Село Верхний Парень","44607402","28422251","УМП \"Коммунальная энергетика\" поселка Эвенск Магаданской области","4909116916","490301001","Сбытовая компания"]
[104,"Магаданская область","Северо-Эвенский муниципальный район","44607000","Село Верхний Парень","44607402","26408175","УМП \"Эвенская электротеплосеть\" поселка Эвенск Магаданской области","4903002976","490301001","ЭСО"]
[105,"Магаданская область","Северо-Эвенский муниципальный район","44607000","Село Верхний Парень","44607402","26408175","УМП \"Эвенская электротеплосеть\" поселка Эвенск Магаданской области","4903002976","490301001","Станция - поставщик ЭЭ"]
[106,"Магаданская область","Северо-Эвенский муниципальный район","44607000","Село Верхний Парень","44607402","26408175","УМП \"Эвенская электротеплосеть\" поселка Эвенск Магаданской области","4903002976","490301001","Сетевая компания"]
[107,"Магаданская область","Северо-Эвенский муниципальный район","44607000","Село Верхний Парень","44607402","26408175","УМП \"Эвенская электротеплосеть\" поселка Эвенск Магаданской области","4903002976","490301001","Региональная генерация"]
[108,"Магаданская область","Северо-Эвенский муниципальный район","44607000","Село Верхний Парень","44607402","26408175","УМП \"Эвенская электротеплосеть\" поселка Эвенск Магаданской области","4903002976","490301001","Сбытовая компания"]
[109,"Магаданская область","Северо-Эвенский муниципальный район","44607000","Село Гарманда","44607404","28422251","УМП \"Коммунальная энергетика\" поселка Эвенск Магаданской области","4909116916","490301001","Станция - поставщик ЭЭ"]
[110,"Магаданская область","Северо-Эвенский муниципальный район","44607000","Село Гарманда","44607404","28422251","УМП \"Коммунальная энергетика\" поселка Эвенск Магаданской области","4909116916","490301001","Сбытовая компания"]
[111,"Магаданская область","Северо-Эвенский муниципальный район","44607000","Село Гарманда","44607404","28422251","УМП \"Коммунальная энергетика\" поселка Эвенск Магаданской области","4909116916","490301001","Региональная генерация"]
[112,"Магаданская область","Северо-Эвенский муниципальный район","44607000","Село Гарманда","44607404","26408175","УМП \"Эвенская электротеплосеть\" поселка Эвенск Магаданской области","4903002976","490301001","Станция - поставщик ЭЭ"]
[113,"Магаданская область","Северо-Эвенский муниципальный район","44607000","Село Гарманда","44607404","26408175","УМП \"Эвенская электротеплосеть\" поселка Эвенск Магаданской области","4903002976","490301001","Региональная генерация"]
[114,"Магаданская область","Северо-Эвенский муниципальный район","44607000","Село Гарманда","44607404","26408175","УМП \"Эвенская электротеплосеть\" поселка Эвенск Магаданской области","4903002976","490301001","ЭСО"]
[115,"Магаданская область","Северо-Эвенский муниципальный район","44607000","Село Гарманда","44607404","26408175","УМП \"Эвенская электротеплосеть\" поселка Эвенск Магаданской области","4903002976","490301001","Сбытовая компания"]
[116,"Магаданская область","Северо-Эвенский муниципальный район","44607000","Село Гарманда","44607404","26408175","УМП \"Эвенская электротеплосеть\" поселка Эвенск Магаданской области","4903002976","490301001","Сетевая компания"]
[117,"Магаданская область","Северо-Эвенский муниципальный район","44607000","Село Гижига","44607407","28422251","УМП \"Коммунальная энергетика\" поселка Эвенск Магаданской области","4909116916","490301001","Региональная генерация"]
[118,"Магаданская область","Северо-Эвенский муниципальный район","44607000","Село Гижига","44607407","28422251","УМП \"Коммунальная энергетика\" поселка Эвенск Магаданской области","4909116916","490301001","Сбытовая компания"]
[119,"Магаданская область","Северо-Эвенский муниципальный район","44607000","Село Гижига","44607407","28422251","УМП \"Коммунальная энергетика\" поселка Эвенск Магаданской области","4909116916","490301001","Станция - поставщик ЭЭ"]
[120,"Магаданская область","Северо-Эвенский муниципальный район","44607000","Село Гижига","44607407","26408175","УМП \"Эвенская электротеплосеть\" поселка Эвенск Магаданской области","4903002976","490301001","Региональная генерация"]
[121,"Магаданская область","Северо-Эвенский муниципальный район","44607000","Село Гижига","44607407","26408175","УМП \"Эвенская электротеплосеть\" поселка Эвенск Магаданской области","4903002976","490301001","Сбытовая компания"]
[122,"Магаданская область","Северо-Эвенский муниципальный район","44607000","Село Гижига","44607407","26408175","УМП \"Эвенская электротеплосеть\" поселка Эвенск Магаданской области","4903002976","490301001","Сетевая компания"]
[123,"Магаданская область","Северо-Эвенский муниципальный район","44607000","Село Гижига","44607407","26408175","УМП \"Эвенская электротеплосеть\" поселка Эвенск Магаданской области","4903002976","490301001","Станция - поставщик ЭЭ"]
[124,"Магаданская область","Северо-Эвенский муниципальный район","44607000","Село Гижига","44607407","26408175","УМП \"Эвенская электротеплосеть\" поселка Эвенск Магаданской области","4903002976","490301001","ЭСО"]
[125,"Магаданская область","Северо-Эвенский муниципальный район","44607000","Село Чайбуха","44607413","28422251","УМП \"Коммунальная энергетика\" поселка Эвенск Магаданской области","4909116916","490301001","Региональная генерация"]
[126,"Магаданская область","Северо-Эвенский муниципальный район","44607000","Село Чайбуха","44607413","28422251","УМП \"Коммунальная энергетика\" поселка Эвенск Магаданской области","4909116916","490301001","Станция - поставщик ЭЭ"]
[127,"Магаданская область","Северо-Эвенский муниципальный район","44607000","Село Чайбуха","44607413","28422251","УМП \"Коммунальная энергетика\" поселка Эвенск Магаданской области","4909116916","490301001","Сбытовая компания"]
[128,"Магаданская область","Северо-Эвенский муниципальный район","44607000","Село Чайбуха","44607413","26408175","УМП \"Эвенская электротеплосеть\" поселка Эвенск Магаданской области","4903002976","490301001","Станция - поставщик ЭЭ"]
[129,"Магаданская область","Северо-Эвенский муниципальный район","44607000","Село Чайбуха","44607413","26408175","УМП \"Эвенская электротеплосеть\" поселка Эвенск Магаданской области","4903002976","490301001","Региональная генерация"]
[130,"Магаданская область","Северо-Эвенский муниципальный район","44607000","Село Чайбуха","44607413","26408175","УМП \"Эвенская электротеплосеть\" поселка Эвенск Магаданской области","4903002976","490301001","ЭСО"]
[131,"Магаданская область","Северо-Эвенский муниципальный район","44607000","Село Чайбуха","44607413","26408175","УМП \"Эвенская электротеплосеть\" поселка Эвенск Магаданской области","4903002976","490301001","Сбытовая компания"]
[132,"Магаданская область","Северо-Эвенский муниципальный район","44607000","Село Чайбуха","44607413","26408175","УМП \"Эвенская электротеплосеть\" поселка Эвенск Магаданской области","4903002976","490301001","Сетевая компания"]
[133,"Магаданская область","Среднеканский","44710000","Среднеканский","44710000","26408166","МУП \"Сеймчантеплосеть\"","4904004662","490401001","Сетевая компания"]
[134,"Магаданская область","Среднеканский","44710000","Среднеканский","44710000","26415510","ПАО \"Колымаэнерго\"","4908000718","997450001","Региональная генерация"]
[135,"Магаданская область","Среднеканский","44710000","Среднеканский","44710000","26415510","ПАО \"Колымаэнерго\"","4908000718","997450001","Сбытовая компания"]
[136,"Магаданская область","Среднеканский","44710000","Среднеканский","44710000","26415510","ПАО \"Колымаэнерго\"","4908000718","997450001","Сетевая компания"]
[137,"Магаданская область","Среднеканский","44710000","Среднеканский","44710000","26415510","ПАО \"Колымаэнерго\"","4908000718","997450001","Станция - поставщик ЭЭ"]
[138,"Магаданская область","Среднеканский","44710000","Среднеканский","44710000","26415549","Филиал \"Колымские электрические сети\" ПАО \"Колымаэнерго\"","4908000718","490402001","Сбытовая компания"]
[139,"Магаданская область","Среднеканский","44710000","Среднеканский","44710000","26415549","Филиал \"Колымские электрические сети\" ПАО \"Колымаэнерго\"","4908000718","490402001","Сетевая компания"]
[140,"Магаданская область","Среднеканский","44710000","Среднеканский","44710000","26415525","филиал \"Колымская ГЭС\" имени Фриштера Ю.И. ПАО \"Колымаэнерго\"","4908000718","490802001","Станция - поставщик ЭЭ"]
[141,"Магаданская область","Среднеканский","44710000","Среднеканский","44710000","26415525","филиал \"Колымская ГЭС\" имени Фриштера Ю.И. ПАО \"Колымаэнерго\"","4908000718","490802001","Региональная генерация"]
[142,"Магаданская область","Среднеканский муниципальный район","44610000","Поселок Сеймчан","44610151","26408166","МУП \"Сеймчантеплосеть\"","4904004662","490401001","Сетевая компания"]
[143,"Магаданская область","Среднеканский муниципальный район","44610000","Поселок Сеймчан","44610151","26823100","ООО \"ДАЛЬЭНЕРГОГАРАНТ\"","4909084157","490901001","Сетевая компания"]
[144,"Магаданская область","Сусуманский","44713000","Сусуманский","44713000","26805708","ОАО \"ОлаИнтерКом\"","4901008429","490101001","Региональная генерация"]
[145,"Магаданская область","Сусуманский","44713000","Сусуманский","44713000","26805708","ОАО \"ОлаИнтерКом\"","4901008429","490101001","Сбытовая компания"]
[146,"Магаданская область","Сусуманский","44713000","Сусуманский","44713000","26805708","ОАО \"ОлаИнтерКом\"","4901008429","490101001","Сетевая компания"]
[147,"Магаданская область","Сусуманский","44713000","Сусуманский","44713000","26805708","ОАО \"ОлаИнтерКом\"","4901008429","490101001","Станция - поставщик ЭЭ"]
[148,"Магаданская область","Сусуманский","44713000","Сусуманский","44713000","26805687","ООО \"Сусуман\"","4905000043","490501001","Сетевая компания"]
[149,"Магаданская область","Сусуманский","44713000","Сусуманский","44713000","26616474","ООО \"Холодный\"","4905098769","490501001","Сетевая компания"]
[150,"Магаданская область","Сусуманский","44713000","Сусуманский","44713000","26382465","ПАО \"Магаданэнерго\" филиал \"Аркагалинская ГРЭС\"","4909047148","490502001","Станция - поставщик ЭЭ"]
[151,"Магаданская область","Сусуманский","44713000","Сусуманский","44713000","26382465","ПАО \"Магаданэнерго\" филиал \"Аркагалинская ГРЭС\"","4909047148","490502001","Региональная генерация"]
[152,"Магаданская область","Сусуманский","44713000","Сусуманский","44713000","26373340","ПАО \"Магаданэнерго\" филиал \"Центральные электрические сети\"","4909047148","490502002","Станция - поставщик ЭЭ"]
[153,"Магаданская область","Сусуманский","44713000","Сусуманский","44713000","26373340","ПАО \"Магаданэнерго\" филиал \"Центральные электрические сети\"","4909047148","490502002","Сбытовая компания"]
[154,"Магаданская область","Сусуманский","44713000","Сусуманский","44713000","26373340","ПАО \"Магаданэнерго\" филиал \"Центральные электрические сети\"","4909047148","490502002","Региональная генерация"]
[155,"Магаданская область","Сусуманский муниципальный район","44613000","Город Сусуман","44613101","26805708","ОАО \"ОлаИнтерКом\"","4901008429","490101001","Региональная генерация"]
[156,"Магаданская область","Сусуманский муниципальный район","44613000","Город Сусуман","44613101","26805708","ОАО \"ОлаИнтерКом\"","4901008429","490101001","Сбытовая компания"]
[157,"Магаданская область","Сусуманский муниципальный район","44613000","Город Сусуман","44613101","26805708","ОАО \"ОлаИнтерКом\"","4901008429","490101001","Сетевая компания"]
[158,"Магаданская область","Сусуманский муниципальный район","44613000","Город Сусуман","44613101","26805708","ОАО \"ОлаИнтерКом\"","4901008429","490101001","Станция - поставщик ЭЭ"]
[159,"Магаданская область","Сусуманский муниципальный район","44613000","Город Сусуман","44613101","26805687","ООО \"Сусуман\"","4905000043","490501001","Сетевая компания"]
[160,"Магаданская область","Сусуманский муниципальный район","44613000","Поселок Мяунджа","44613166","26373340","ПАО \"Магаданэнерго\" филиал \"Центральные электрические сети\"","4909047148","490502002","Региональная генерация"]
[161,"Магаданская область","Сусуманский муниципальный район","44613000","Поселок Мяунджа","44613166","26373340","ПАО \"Магаданэнерго\" филиал \"Центральные электрические сети\"","4909047148","490502002","Сбытовая компания"]
[162,"Магаданская область","Сусуманский муниципальный район","44613000","Поселок Мяунджа","44613166","26373340","ПАО \"Магаданэнерго\" филиал \"Центральные электрические сети\"","4909047148","490502002","Станция - поставщик ЭЭ"]
[163,"Магаданская область","Сусуманский муниципальный район","44613000","Поселок Холодный","44613172","26616474","ООО \"Холодный\"","4905098769","490501001","Сетевая компания"]
[164,"Магаданская область","Сусуманский муниципальный район","44613000","Сусуманский муниципальный район","44613000","26805708","ОАО \"ОлаИнтерКом\"","4901008429","490101001","Станция - поставщик ЭЭ"]
[165,"Магаданская область","Сусуманский муниципальный район","44613000","Сусуманский муниципальный район","44613000","26805708","ОАО \"ОлаИнтерКом\"","4901008429","490101001","Региональная генерация"]
[166,"Магаданская область","Сусуманский муниципальный район","44613000","Сусуманский муниципальный район","44613000","26805708","ОАО \"ОлаИнтерКом\"","4901008429","490101001","Сетевая компания"]
[167,"Магаданская область","Сусуманский муниципальный район","44613000","Сусуманский муниципальный район","44613000","26805708","ОАО \"ОлаИнтерКом\"","4901008429","490101001","Сбытовая компания"]
[168,"Магаданская область","Тенькинский","44716000","Тенькинский","44716000","26805708","ОАО \"ОлаИнтерКом\"","4901008429","490101001","Станция - поставщик ЭЭ"]
[169,"Магаданская область","Тенькинский","44716000","Тенькинский","44716000","26805708","ОАО \"ОлаИнтерКом\"","4901008429","490101001","Сбытовая компания"]
[170,"Магаданская область","Тенькинский","44716000","Тенькинский","44716000","26805708","ОАО \"ОлаИнтерКом\"","4901008429","490101001","Региональная генерация"]
[171,"Магаданская область","Тенькинский","44716000","Тенькинский","44716000","26805708","ОАО \"ОлаИнтерКом\"","4901008429","490101001","Сетевая компания"]
[172,"Магаданская область","Тенькинский","44716000","Тенькинский","44716000","26823105","ООО \"Сервис-Норд\"","4909101878","490901001","Сетевая компания"]
[173,"Магаданская область","Тенькинский","44716000","Тенькинский","44716000","26373340","ПАО \"Магаданэнерго\" филиал \"Центральные электрические сети\"","4909047148","490502002","Станция - поставщик ЭЭ"]
[174,"Магаданская область","Тенькинский","44716000","Тенькинский","44716000","26373340","ПАО \"Магаданэнерго\" филиал \"Центральные электрические сети\"","4909047148","490502002","Региональная генерация"]
[175,"Магаданская область","Тенькинский","44716000","Тенькинский","44716000","26373340","ПАО \"Магаданэнерго\" филиал \"Центральные электрические сети\"","4909047148","490502002","Сбытовая компания"]
[176,"Магаданская область","Тенькинский муниципальный район","44616000","Межселенная территория Тенькинского муниципального района, включающая нп: Оротук, Обо, Мой-Уруста, Яна, Кулу","44616701","26373340","ПАО \"Магаданэнерго\" филиал \"Центральные электрические сети\"","4909047148","490502002","Сбытовая компания"]
[177,"Магаданская область","Тенькинский муниципальный район","44616000","Межселенная территория Тенькинского муниципального района, включающая нп: Оротук, Обо, Мой-Уруста, Яна, Кулу","44616701","26373340","ПАО \"Магаданэнерго\" филиал \"Центральные электрические сети\"","4909047148","490502002","Региональная генерация"]
[178,"Магаданская область","Тенькинский муниципальный район","44616000","Межселенная территория Тенькинского муниципального района, включающая нп: Оротук, Обо, Мой-Уруста, Яна, Кулу","44616701","26373340","ПАО \"Магаданэнерго\" филиал \"Центральные электрические сети\"","4909047148","490502002","Станция - поставщик ЭЭ"]
[179,"Магаданская область","Тенькинский муниципальный район","44616000","Поселок Мадаун","44616411","27054139","МУП \"Тенькатеплосеть\"","4906060408","490601001","Сетевая компания"]
[180,"Магаданская область","Тенькинский муниципальный район","44616000","Поселок Мадаун","44616411","27054139","МУП \"Тенькатеплосеть\"","4906060408","490601001","ЭСО"]
[181,"Магаданская область","Тенькинский муниципальный район","44616000","Поселок Мадаун","44616411","27054139","МУП \"Тенькатеплосеть\"","4906060408","490601001","Региональная генерация"]
[182,"Магаданская область","Тенькинский муниципальный район","44616000","Поселок Мадаун","44616411","26319190","МУП \"Тенькатеплосеть\" администрации муниципального образования \"Поселок Усть-Омчуг\"","4906060133","490601001","Сетевая компания"]
[183,"Магаданская область","Тенькинский муниципальный район","44616000","Поселок Мадаун","44616411","26805708","ОАО \"ОлаИнтерКом\"","4901008429","490101001","Сетевая компания"]
[184,"Магаданская область","Тенькинский муниципальный район","44616000","Поселок Мадаун","44616411","26805708","ОАО \"ОлаИнтерКом\"","4901008429","490101001","Станция - поставщик ЭЭ"]
[185,"Магаданская область","Тенькинский муниципальный район","44616000","Поселок Мадаун","44616411","26805708","ОАО \"ОлаИнтерКом\"","4901008429","490101001","Региональная генерация"]
[186,"Магаданская область","Тенькинский муниципальный район","44616000","Поселок Мадаун","44616411","26805708","ОАО \"ОлаИнтерКом\"","4901008429","490101001","Сбытовая компания"]
[187,"Магаданская область","Тенькинский муниципальный район","44616000","Поселок Омчак","44616405","26319190","МУП \"Тенькатеплосеть\" администрации муниципального образования \"Поселок Усть-Омчуг\"","4906060133","490601001","Сетевая компания"]
[188,"Магаданская область","Тенькинский муниципальный район","44616000","Поселок Омчак","44616405","26805708","ОАО \"ОлаИнтерКом\"","4901008429","490101001","Региональная генерация"]
[189,"Магаданская область","Тенькинский муниципальный район","44616000","Поселок Омчак","44616405","26805708","ОАО \"ОлаИнтерКом\"","4901008429","490101001","Сбытовая компания"]
[190,"Магаданская область","Тенькинский муниципальный район","44616000","Поселок Омчак","44616405","26805708","ОАО \"ОлаИнтерКом\"","4901008429","490101001","Сетевая компания"]
[191,"Магаданская область","Тенькинский муниципальный район","44616000","Поселок Омчак","44616405","26805708","ОАО \"ОлаИнтерКом\"","4901008429","490101001","Станция - поставщик ЭЭ"]
[192,"Магаданская область","Тенькинский муниципальный район","44616000","Поселок Омчак","44616405","26823105","ООО \"Сервис-Норд\"","4909101878","490901001","Сетевая компания"]
[193,"Магаданская область","Тенькинский муниципальный район","44616000","Поселок Усть-Омчуг","44616151","26319190","МУП \"Тенькатеплосеть\" администрации муниципального образования \"Поселок Усть-Омчуг\"","4906060133","490601001","Сетевая компания"]
[194,"Магаданская область","Тенькинский муниципальный район","44616000","Поселок Усть-Омчуг","44616151","26805708","ОАО \"ОлаИнтерКом\"","4901008429","490101001","Сбытовая компания"]
[195,"Магаданская область","Тенькинский муниципальный район","44616000","Поселок Усть-Омчуг","44616151","26805708","ОАО \"ОлаИнтерКом\"","4901008429","490101001","Региональная генерация"]
[196,"Магаданская область","Тенькинский муниципальный район","44616000","Поселок Усть-Омчуг","44616151","26805708","ОАО \"ОлаИнтерКом\"","4901008429","490101001","Сетевая компания"]
[197,"Магаданская область","Тенькинский муниципальный район","44616000","Поселок Усть-Омчуг","44616151","26805708","ОАО \"ОлаИнтерКом\"","4901008429","490101001","Станция - поставщик ЭЭ"]
[198,"Магаданская область","Тенькинский муниципальный район","44616000","Поселок им Гастелло","44616408","26319190","МУП \"Тенькатеплосеть\" администрации муниципального образования \"Поселок Усть-Омчуг\"","4906060133","490601001","Сетевая компания"]
[199,"Магаданская область","Тенькинский муниципальный район","44616000","Поселок им Гастелло","44616408","26805708","ОАО \"ОлаИнтерКом\"","4901008429","490101001","Сбытовая компания"]
[200,"Магаданская область","Тенькинский муниципальный район","44616000","Поселок им Гастелло","44616408","26805708","ОАО \"ОлаИнтерКом\"","4901008429","490101001","Региональная генерация"]
[201,"Магаданская область","Тенькинский муниципальный район","44616000","Поселок им Гастелло","44616408","26805708","ОАО \"ОлаИнтерКом\"","4901008429","490101001","Сетевая компания"]
[202,"Магаданская область","Тенькинский муниципальный район","44616000","Поселок им Гастелло","44616408","26805708","ОАО \"ОлаИнтерКом\"","4901008429","490101001","Станция - поставщик ЭЭ"]
[203,"Магаданская область","Тенькинский муниципальный район","44616000","Поселок им Гастелло","44616408","26823105","ООО \"Сервис-Норд\"","4909101878","490901001","Сетевая компания"]
[204,"Магаданская область","Хасынский","44719000","Хасынский","44719000","26382460","МУП \"КАРТЭС\"","4907017606","490701001","Сетевая компания"]
[205,"Магаданская область","Хасынский","44719000","Хасынский","44719000","26408036","МУП \"Комэнерго\"","4907000955","490701001","Региональная генерация"]
[206,"Магаданская область","Хасынский","44719000","Хасынский","44719000","26408036","МУП \"Комэнерго\"","4907000955","490701001","Сбытовая компания"]
[207,"Магаданская область","Хасынский","44719000","Хасынский","44719000","26408036","МУП \"Комэнерго\"","4907000955","490701001","Станция - поставщик ЭЭ"]
[208,"Магаданская область","Хасынский","44719000","Хасынский","44719000","26373332","МУП \"Стекольный-комэнерго\"","4907007492","490701001","Сетевая компания"]
[209,"Магаданская область","Хасынский муниципальный район","44619000","Поселок Атка","44619154","26408036","МУП \"Комэнерго\"","4907000955","490701001","Региональная генерация"]
[210,"Магаданская область","Хасынский муниципальный район","44619000","Поселок Атка","44619154","26408036","МУП \"Комэнерго\"","4907000955","490701001","Сбытовая компания"]
[211,"Магаданская область","Хасынский муниципальный район","44619000","Поселок Атка","44619154","26408036","МУП \"Комэнерго\"","4907000955","490701001","Станция - поставщик ЭЭ"]
[212,"Магаданская область","Хасынский муниципальный район","44619000","Поселок Карамкен","44619402","26382460","МУП \"КАРТЭС\"","4907017606","490701001","Сетевая компания"]
[213,"Магаданская область","Хасынский муниципальный район","44619000","Поселок Палатка","44619151","26408036","МУП \"Комэнерго\"","4907000955","490701001","Региональная генерация"]
[214,"Магаданская область","Хасынский муниципальный район","44619000","Поселок Палатка","44619151","26408036","МУП \"Комэнерго\"","4907000955","490701001","Сбытовая компания"]
[215,"Магаданская область","Хасынский муниципальный район","44619000","Поселок Палатка","44619151","26408036","МУП \"Комэнерго\"","4907000955","490701001","Станция - поставщик ЭЭ"]
[216,"Магаданская область","Хасынский муниципальный район","44619000","Поселок Стекольный","44619163","26373332","МУП \"Стекольный-комэнерго\"","4907007492","490701001","Сетевая компания"]
[217,"Магаданская область","Хасынский муниципальный район","44619000","Поселок Талая","44619166","26408036","МУП \"Комэнерго\"","4907000955","490701001","Региональная генерация"]
[218,"Магаданская область","Хасынский муниципальный район","44619000","Поселок Талая","44619166","26408036","МУП \"Комэнерго\"","4907000955","490701001","Станция - поставщик ЭЭ"]
[219,"Магаданская область","Хасынский муниципальный район","44619000","Поселок Талая","44619166","26408036","МУП \"Комэнерго\"","4907000955","490701001","Сбытовая компания"]
[220,"Магаданская область","Ягоднинский","44722000","Ягоднинский","44722000","26517276","ООО \"Оротукан Теплосеть плюс\"","4908011406","490801001","Сетевая компания"]
[221,"Магаданская область","Ягоднинский","44722000","Ягоднинский","44722000","27686171","ООО \"Оротукан Услуга\"","4908013805","490801001","Сетевая компания"]
[222,"Магаданская область","Ягоднинский","44722000","Ягоднинский","44722000","26408034","ООО \"Профиль\"","4908011082","490801001","Сетевая компания"]
[223,"Магаданская область","Ягоднинский","44722000","Ягоднинский","44722000","26415510","ПАО \"Колымаэнерго\"","4908000718","997450001","Сетевая компания"]
[224,"Магаданская область","Ягоднинский","44722000","Ягоднинский","44722000","26415510","ПАО \"Колымаэнерго\"","4908000718","997450001","Сбытовая компания"]
[225,"Магаданская область","Ягоднинский","44722000","Ягоднинский","44722000","26415510","ПАО \"Колымаэнерго\"","4908000718","997450001","Региональная генерация"]
[226,"Магаданская область","Ягоднинский","44722000","Ягоднинский","44722000","26415510","ПАО \"Колымаэнерго\"","4908000718","997450001","Станция - поставщик ЭЭ"]
[227,"Магаданская область","Ягоднинский","44722000","Ягоднинский","44722000","26415549","Филиал \"Колымские электрические сети\" ПАО \"Колымаэнерго\"","4908000718","490402001","Сбытовая компания"]
[228,"Магаданская область","Ягоднинский","44722000","Ягоднинский","44722000","26415549","Филиал \"Колымские электрические сети\" ПАО \"Колымаэнерго\"","4908000718","490402001","Сетевая компания"]
[229,"Магаданская область","Ягоднинский","44722000","Ягоднинский","44722000","26914886","Филиал \"Ягоднинский\" ООО \"Теплоэнергия\"","4908007216","490801001","Сетевая компания"]
[230,"Магаданская область","Ягоднинский","44722000","Ягоднинский","44722000","26415525","филиал \"Колымская ГЭС\" имени Фриштера Ю.И. ПАО \"Колымаэнерго\"","4908000718","490802001","Региональная генерация"]
[231,"Магаданская область","Ягоднинский","44722000","Ягоднинский","44722000","26415525","филиал \"Колымская ГЭС\" имени Фриштера Ю.И. ПАО \"Колымаэнерго\"","4908000718","490802001","Станция - поставщик ЭЭ"]
[232,"Магаданская область","Ягоднинский муниципальный район","44622000","Поселок Бурхала","44622154","26408034","ООО \"Профиль\"","4908011082","490801001","Сетевая компания"]
[233,"Магаданская область","Ягоднинский муниципальный район","44622000","Поселок Оротукан","44622163","26517276","ООО \"Оротукан Теплосеть плюс\"","4908011406","490801001","Сетевая компания"]
[234,"Магаданская область","Ягоднинский муниципальный район","44622000","Поселок Оротукан","44622163","27686171","ООО \"Оротукан Услуга\"","4908013805","490801001","Сетевая компания"]
[235,"Магаданская область","Ягоднинский муниципальный район","44622000","Поселок Синегорье","44622164","26415525","филиал \"Колымская ГЭС\" имени Фриштера Ю.И. ПАО \"Колымаэнерго\"","4908000718","490802001","Региональная генерация"]
[236,"Магаданская область","Ягоднинский муниципальный район","44622000","Поселок Синегорье","44622164","26415525","филиал \"Колымская ГЭС\" имени Фриштера Ю.И. ПАО \"Колымаэнерго\"","4908000718","490802001","Станция - поставщик ЭЭ"]
[237,"Магаданская область","Ягоднинский муниципальный район","44622000","Поселок Ягодное","44622151","26914886","Филиал \"Ягоднинский\" ООО \"Теплоэнергия\"","4908007216","490801001","Сетевая компания"]
[238,"Магаданская область",null,null,null,null,"26319197","АО \"Магаданэлектросеть\"","4909044901","490901001","Сбытовая компания"]
[239,"Магаданская область",null,null,null,null,"26319197","АО \"Магаданэлектросеть\"","4909044901","490901001","Сетевая компания"]
[240,"Магаданская область",null,null,null,null,"26617350","АО \"Оборонэнергосбыт\"","7704731218","773043001","Сбытовая компания"]
[241,"Магаданская область",null,null,null,null,"26382460","МУП \"КАРТЭС\"","4907017606","490701001","Сетевая компания"]
[242,"Магаданская область",null,null,null,null,"26408036","МУП \"Комэнерго\"","4907000955","490701001","Региональная генерация"]
[243,"Магаданская область",null,null,null,null,"26408036","МУП \"Комэнерго\"","4907000955","490701001","Станция - поставщик ЭЭ"]
[244,"Магаданская область",null,null,null,null,"26408036","МУП \"Комэнерго\"","4907000955","490701001","Сбытовая компания"]
[245,"Магаданская область",null,null,null,null,"26408166","МУП \"Сеймчантеплосеть\"","4904004662","490401001","Сетевая компания"]
[246,"Магаданская область",null,null,null,null,"26373332","МУП \"Стекольный-комэнерго\"","4907007492","490701001","Сетевая компания"]
[247,"Магаданская область",null,null,null,null,"26357514","МУП ЖКХ \"Ямское\"","4901007714","490101001","Сбытовая компания"]
[248,"Магаданская область",null,null,null,null,"26357514","МУП ЖКХ \"Ямское\"","4901007714","490101001","Региональная генерация"]
[249,"Магаданская область",null,null,null,null,"26357514","МУП ЖКХ \"Ямское\"","4901007714","490101001","Станция - поставщик ЭЭ"]
[250,"Магаданская область",null,null,null,null,"28042880","ОАО \"Аэропорт Магадан\"","4909115648","490901001","Сетевая компания"]
[251,"Магаданская область",null,null,null,null,"26805708","ОАО \"ОлаИнтерКом\"","4901008429","490101001","Сетевая компания"]
[252,"Магаданская область",null,null,null,null,"26805708","ОАО \"ОлаИнтерКом\"","4901008429","490101001","Станция - поставщик ЭЭ"]
[253,"Магаданская область",null,null,null,null,"26805708","ОАО \"ОлаИнтерКом\"","4901008429","490101001","Региональная генерация"]
[254,"Магаданская область",null,null,null,null,"26805708","ОАО \"ОлаИнтерКом\"","4901008429","490101001","Сбытовая компания"]
[255,"Магаданская область",null,null,null,null,"28445259","ОАО \"РАО ЭС Востока\"","2801133630","997450001","Региональная генерация"]
[256,"Магаданская область",null,null,null,null,"28445259","ОАО \"РАО ЭС Востока\"","2801133630","997450001","Станция - поставщик ЭЭ"]
[257,"Магаданская область",null,null,null,null,"26823100","ООО \"ДАЛЬЭНЕРГОГАРАНТ\"","4909084157","490901001","Сетевая компания"]
[258,"Магаданская область",null,null,null,null,"26517276","ООО \"Оротукан Теплосеть плюс\"","4908011406","490801001","Сетевая компания"]
[259,"Магаданская область",null,null,null,null,"27686171","ООО \"Оротукан Услуга\"","4908013805","490801001","Сетевая компания"]
[260,"Магаданская область",null,null,null,null,"26408034","ООО \"Профиль\"","4908011082","490801001","Сетевая компания"]
[261,"Магаданская область",null,null,null,null,"26823108","ООО \"Региональные энергетические системы\"","4902010798","490201001","ЭСО"]
[262,"Магаданская область",null,null,null,null,"26823108","ООО \"Региональные энергетические системы\"","4902010798","490201001","Станция - поставщик ЭЭ"]
[263,"Магаданская область",null,null,null,null,"26823108","ООО \"Региональные энергетические системы\"","4902010798","490201001","Сетевая компания"]
[264,"Магаданская область",null,null,null,null,"26823108","ООО \"Региональные энергетические системы\"","4902010798","490201001","Сбытовая компания"]
[265,"Магаданская область",null,null,null,null,"26823108","ООО \"Региональные энергетические системы\"","4902010798","490201001","Региональная генерация"]
[266,"Магаданская область",null,null,null,null,"26823105","ООО \"Сервис-Норд\"","4909101878","490901001","Сетевая компания"]
[267,"Магаданская область",null,null,null,null,"26805687","ООО \"Сусуман\"","4905000043","490501001","Сетевая компания"]
[268,"Магаданская область",null,null,null,null,"26373323","ООО \"Тахтоямск-Энергия\"","4901006982","490101001","Сбытовая компания"]
[269,"Магаданская область",null,null,null,null,"26373323","ООО \"Тахтоямск-Энергия\"","4901006982","490101001","Станция - поставщик ЭЭ"]
[270,"Магаданская область",null,null,null,null,"26373323","ООО \"Тахтоямск-Энергия\"","4901006982","490101001","Региональная генерация"]
[271,"Магаданская область",null,null,null,null,"26616474","ООО \"Холодный\"","4905098769","490501001","Сетевая компания"]
[272,"Магаданская область",null,null,null,null,"26823094","ООО \"Энергетик\"","4901008281","490101001","Сетевая компания"]
[273,"Магаданская область",null,null,null,null,"26507188","Оймяконский филиал АО \"Теплоэнергосервис\"","1435191592","142003001","Сетевая компания"]
[274,"Магаданская область",null,null,null,null,"26415510","ПАО \"Колымаэнерго\"","4908000718","997450001","Региональная генерация"]
[275,"Магаданская область",null,null,null,null,"26415510","ПАО \"Колымаэнерго\"","4908000718","997450001","Сбытовая компания"]
[276,"Магаданская область",null,null,null,null,"26415510","ПАО \"Колымаэнерго\"","4908000718","997450001","Сетевая компания"]
[277,"Магаданская область",null,null,null,null,"26415510","ПАО \"Колымаэнерго\"","4908000718","997450001","Станция - поставщик ЭЭ"]
[278,"Магаданская область",null,null,null,null,"28139521","ПАО \"Магаданский морской торговый порт\"","4909047613","490950001","Сбытовая компания"]
[279,"Магаданская область",null,null,null,null,"28139521","ПАО \"Магаданский морской торговый порт\"","4909047613","490950001","Сетевая компания"]
[280,"Магаданская область",null,null,null,null,"26319198","ПАО \"Магаданэнерго\"","4909047148","490901001","Станция - поставщик ЭЭ"]
[281,"Магаданская область",null,null,null,null,"26319198","ПАО \"Магаданэнерго\"","4909047148","490901001","Сетевая компания"]
[282,"Магаданская область",null,null,null,null,"26319198","ПАО \"Магаданэнерго\"","4909047148","490901001","Региональная генерация"]
[283,"Магаданская область",null,null,null,null,"26319198","ПАО \"Магаданэнерго\"","4909047148","490901001","Сбытовая компания"]
[284,"Магаданская область",null,null,null,null,"26382465","ПАО \"Магаданэнерго\" филиал \"Аркагалинская ГРЭС\"","4909047148","490502001","Региональная генерация"]
[285,"Магаданская область",null,null,null,null,"26382465","ПАО \"Магаданэнерго\" филиал \"Аркагалинская ГРЭС\"","4909047148","490502001","Станция - поставщик ЭЭ"]
[286,"Магаданская область",null,null,null,null,"26415482","ПАО \"Магаданэнерго\" филиал \"Магаданская ТЭЦ\"","4909047148","490903004","Региональная генерация"]
[287,"Магаданская область",null,null,null,null,"26415482","ПАО \"Магаданэнерго\" филиал \"Магаданская ТЭЦ\"","4909047148","490903004","Станция - поставщик ЭЭ"]
[288,"Магаданская область",null,null,null,null,"26373340","ПАО \"Магаданэнерго\" филиал \"Центральные электрические сети\"","4909047148","490502002","Сбытовая компания"]
[289,"Магаданская область",null,null,null,null,"26373340","ПАО \"Магаданэнерго\" филиал \"Центральные электрические сети\"","4909047148","490502002","Региональная генерация"]
[290,"Магаданская область",null,null,null,null,"26373340","ПАО \"Магаданэнерго\" филиал \"Центральные электрические сети\"","4909047148","490502002","Станция - поставщик ЭЭ"]
[291,"Магаданская область",null,null,null,null,"28422251","УМП \"Коммунальная энергетика\" поселка Эвенск Магаданской области","4909116916","490301001","Сбытовая компания"]
[292,"Магаданская область",null,null,null,null,"28422251","УМП \"Коммунальная энергетика\" поселка Эвенск Магаданской области","4909116916","490301001","Станция - поставщик ЭЭ"]
[293,"Магаданская область",null,null,null,null,"28422251","УМП \"Коммунальная энергетика\" поселка Эвенск Магаданской области","4909116916","490301001","Региональная генерация"]
[294,"Магаданская область",null,null,null,null,"26408175","УМП \"Эвенская электротеплосеть\" поселка Эвенск Магаданской области","4903002976","490301001","Станция - поставщик ЭЭ"]
[295,"Магаданская область",null,null,null,null,"26408175","УМП \"Эвенская электротеплосеть\" поселка Эвенск Магаданской области","4903002976","490301001","Сетевая компания"]
[296,"Магаданская область",null,null,null,null,"26408175","УМП \"Эвенская электротеплосеть\" поселка Эвенск Магаданской области","4903002976","490301001","ЭСО"]
[297,"Магаданская область",null,null,null,null,"26408175","УМП \"Эвенская электротеплосеть\" поселка Эвенск Магаданской области","4903002976","490301001","Сбытовая компания"]
[298,"Магаданская область",null,null,null,null,"26408175","УМП \"Эвенская электротеплосеть\" поселка Эвенск Магаданской области","4903002976","490301001","Региональная генерация"]
[299,"Магаданская область",null,null,null,null,"26415549","Филиал \"Колымские электрические сети\" ПАО \"Колымаэнерго\"","4908000718","490402001","Сбытовая компания"]
[300,"Магаданская область",null,null,null,null,"26415549","Филиал \"Колымские электрические сети\" ПАО \"Колымаэнерго\"","4908000718","490402001","Сетевая компания"]
[301,"Магаданская область",null,null,null,null,"26914886","Филиал \"Ягоднинский\" ООО \"Теплоэнергия\"","4908007216","490801001","Сетевая компания"]
[302,"Магаданская область",null,null,null,null,"26415525","филиал \"Колымская ГЭС\" имени Фриштера Ю.И. ПАО \"Колымаэнерго\"","4908000718","490802001","Региональная генерация"]
[303,"Магаданская область",null,null,null,null,"26415525","филиал \"Колымская ГЭС\" имени Фриштера Ю.И. ПАО \"Колымаэнерго\"","4908000718","490802001","Станция - поставщик ЭЭ"]

{"sheet":"REESTR_MO","index":18,"n_rows":10,"n_cols":6,"rows_kept":10,"cut":false,"hidden":true,"merged":[]}
["МР","МО","МО_ОКТМО","МО_ТИП","МР","ИМЯ ДИАПАЗОНА"]
["Город Магадан","Город Магадан","44701000","городской округ","Город Магадан","MO_LIST_2"]
["Ольский","Ольский","44702000","городской округ","Ольский","MO_LIST_3"]
["Омсукчанский","Омсукчанский","44704000","городской округ","Омсукчанский","MO_LIST_4"]
["Северо-Эвенский","Северо-Эвенский","44707000","городской округ","Северо-Эвенский","MO_LIST_5"]
["Среднеканский","Среднеканский","44710000","городской округ","Среднеканский","MO_LIST_6"]
["Сусуманский","Сусуманский","44713000","городской округ","Сусуманский","MO_LIST_7"]
["Тенькинский","Тенькинский","44716000","городской округ","Тенькинский","MO_LIST_8"]
["Хасынский","Хасынский","44719000","городской округ","Хасынский","MO_LIST_9"]
["Ягоднинский","Ягоднинский","44722000","городской округ","Ягоднинский","MO_LIST_10"]

{"sheet":"modfrmRegion","index":19,"n_rows":0,"n_cols":0,"rows_kept":0,"cut":false,"hidden":true,"merged":[]}

{"sheet":"modfrmReestr","index":20,"n_rows":0,"n_cols":0,"rows_kept":0,"cut":false,"hidden":true,"merged":[]}

{"sheet":"modfrmCheckUpdates","index":21,"n_rows":0,"n_cols":0,"rows_kept":0,"cut":false,"hidden":true,"merged":[]}

{"sheet":"modReestr","index":22,"n_rows":0,"n_cols":0,"rows_kept":0,"cut":false,"hidden":true,"merged":[]}

{"sheet":"modUpdTemplMain","index":23,"n_rows":0,"n_cols":0,"rows_kept":0,"cut":false,"hidden":true,"merged":[]}

{"sheet":"modDoubleClick","index":24,"n_rows":0,"n_cols":0,"rows_kept":0,"cut":false,"hidden":true,"merged":[]}

{"sheet":"modHyperlink","index":25,"n_rows":0,"n_cols":0,"rows_kept":0,"cut":false,"hidden":true,"merged":[]}

{"sheet":"modfrmDateChoose","index":26,"n_rows":0,"n_cols":0,"rows_kept":0,"cut":false,"hidden":true,"merged":[]}